Workbook

Sheet ОФО Гимназия №96
C1: Расчет объема финансового обеспечения на 2023 год
C3: Муниципальное бюджетное общеобразовательное учреждение «Гимназия №96» Вахитовского района г.Казани
A5: № стр. | B5: свод | C5: Новые Доп ЭК | D5: КОСГУ | E5: (счета ЛАГ, ЛБГ) - КЦСР 0220242100, 0220242102, 0220242200, 0220825280, 0220853031, 02209L3040, 0260499900 (ДКР 302, 303, 304, 305, 308, 106, 274, 288, 292, 2Г3, 2Д1, 340, 347, 348) | G5: Доп.КР 302, 305, 288, 347 (ассигнования) | I5: Классное руководство Доп.КР 106 | J5: Доп.КР 303, 304, 305, 308, 340, 347, 348, 274, 292, 2Г3, 2Д1 (ассигнования) | K5: Охрана учреждений Доп.КР 274, 308 (ассигнования) | L5: Ассигнования 2022 год ДопКр 539 (род.плата) | M5: Расчетная потребность на 2023 год | N5: Смета учреждения на выполнение муниципального задания (счет ЛАГ, ЛБГ), всего: | O5: в том числе за счет: | S5: выполнение муниципального задания (счет ЛАГ, ЛБГ) | AI5: Контроль распред.ОФО | AJ5: Доп.КР 302, 305, 340, 347 (утвержденный план ассигнования) | AL5: Классное руководство Доп.КР 106 | AM5: Доп.КР 303, 304, 305, 308, 340, 347, 348, 274, 292, 2Г3, 2Д1 (ассигнования) | AN5: Охрана учреждений Доп.КР 308, 274
E6: Утв.план ассигнования 2022 | F6: Ассигнования 2022 год | G6: в том числе | O6: субвенции РТ | P6: бюджета города | Q6: средства РФ | R6: род.платы | S6: Итого НФЗ: | T6: в том числе | X6: Итого НСВ : | Y6: в том числе | AB6: Итого НСИ: | AC6: в том числе | AE6: доведение до уровня утвержденной тарификации | AF6: сверхнормативные расходы | AG6: Охрана учреждений | AH6: Классное руководство | AJ6: 274
G7: за счет субвенции РТ | H7: за счет бюджета города на госполномочия (субсидия) | I7: за счет субвенции РФ | J7: бюджет РФ, бюджета города | K7: бюджет РТ, бюджет города | T7: субвенция РТ | U7: субвенция РТ "резерв на премию") | V7: субвенция РТ (ДРКБ, СИЗО) | W7: субсидия РТ | Y7: бюджет города | Z7: бюджет РФ | AA7: родительская плата | AJ7: за счет субвенции РТ | AK7: за счет бюджета города на госполномочия (субсидия) | AL7: за счет субвенции РФ | AM7: бюджета города | AN7: бюджет РТ, бюджет города
AC8: расходы содержанию имущества | AD8: содержание автотранспорта
B9: 1 | C9: 2 | E9: 3=3_1+3_2+3_3+3_4+3_5 | F9: 4=5+6+7+8+9 | G9: 5 | H9: 6 | I9: 7 | J9: 8 | K9: 9 | L9: 10 | M9: 11 | N9: 12=13+14+15+16 | O9: 13=18+19+20 | P9: 14=21+23+26+29+30+31 | Q9: 15=24+32 | R9: 16=25 | S9: 17=18+19+20+21 | T9: 18 | U9: 19 | V9: 20 | W9: 21 | X9: 22=23+24+25 | Y9: 23 | Z9: 24 | AA9: 25 | AB9: 26=27+28 | AC9: 27 | AD9: 28 | AE9: 29 | AF9: 30 | AG9: 31 | AH9: 32 | AI9: 36=11-12=0 | AJ9: 3_1 | AK9: 3_2 | AL9: 3_3 | AM9: 3_4 | AN9: 3_5
B10: КЦСР | G10: 0220825280 | H10: 0220242100, 0220242200 | I10: 0220853031 | J10: 0220242100, 0220242102, 0220242200, 02209L3040 | K10: 0260499900 | L10: 0220242200 | T10: 0220825280 | U10: 0220825280 | V10: 0220825280 | W10: 0220242100, 0220242200 | Y10: 0220242200, 02209L3040, 0220923040 | Z10: 02209L3040 | AA10: 0220242200 | AC10: 0220242100, 0220242200 | AD10: 0220242100, 0220242200 | AE10: 0220242100, 0220242200 | AF10: 0220242100, 0220242200 | AG10: 0260499900 | AH10: 0220853031 | AJ10: 0220825280 | AK10: 0220242100, 0220242200 | AL10: 0220853031 | AM10: 0220242100, 0220242200, 02209L3040 | AN10: 0260499900
B11: ДКР | G11: 302 | H11: 302, 305,288, 347 | I11: 106 | J11: 303, 304, 305, 308, 340, 347, 348, 274,292,2Г3, 2Д1 | K11: 274,308 | L11: 539 | T11: 302 | U11: 302 | V11: 305 | W11: 302 | Y11: 303 | Z11: 303 | AA11: 539 | AC11: 304 | AD11: 304 | AE11: 305 | AF11: 308 | AG11: 308 | AH11: 106 | AJ11: Утвержденный план ассигнования 2022 год
B12: ДопФК | G12: 05000, 05100, 13594, 13597 | H12: 05000, 05100, 13581, | I12: 00000, 00100 | J12: 00000, 00100, 13594, 13599, 59900, 63498, 90100, 90210, 90220,90230, 00416 | K12: 00000, 00100, 06000, 59900, 13599 | L12: 100 | O12: 0.00 | T12: 05000,05100 | U12: 13594 | V12: 05000 | W12: 05000,05100 | Y12: 00000, 00100 | Z12: 00416 | AA12: 00100 | AC12: 00000, 00100 | AD12: 90210, 90220, 90230 | AE12: 00000, 00100, 05000, 05100, 90210, 90220, 90230 | AF12: 00000, 00100, 90210, 90220, 90230, 05000, 05100 | AG12: 00000, 00100 | AH12: 00000, 00100 | AJ12: 05000, 05100, 13594, 13597 | AK12: 05000, 05100, 13581, | AL12: 00000, 00100 | AM12: 00000, 00100, 13594, 13599, 59900, 63498, 90100, 90210, 90220,90230, 00416 | AN12: 00000, 00100, 06000, 59900, 13599
A14: 1 | B14: Нормативный ОФО ("Барс.МБП 2023_Тарификация"), всего на 2023 год | C14: x | E14: x | F14: x | G14: - | H14: - | I14: - | J14: - | K14: - | L14: x | M14: x | N14: x | O14: 50,860,979.40 | P14: 17,102,184.73 | Q14: 3,174,773.21 | R14: - | S14: 55,746,276.40 | T14: 50,860,979.40 | U14: 4,885,297.00 | V14: - | W14: - | X14: 5,771,708.04 | Y14: 2,596,934.83 | Z14: 3,174,773.21 | AA14: - | AB14: 14,505,249.90 | AC14: 14,505,249.90 | AD14: - | AE14: X | AF14: X | AG14: X | AH14: X | AI14: X | AJ14: - | AK14: - | AL14: - | AM14: - | AN14: -
A15: 2 | B15: Контроль по нормативу | C15: x | D15: x | E15: x | F15: x | G15: x | H15: x | I15: - | J15: x | K15: - | L15: x | M15: x | N15: x | O15: -4,885,297.00 | P15: -4,353,123.98 | Q15: -3,090,234.67 | R15: x | S15: x | T15: - | U15: - | V15: - | W15: - | X15: - | Y15: x | Z15: - | AA15: x | AB15: - | AC15: x | AD15: x | AE15: x | AF15: x | AG15: x | AH15: x | AI15: x | AJ15: x | AK15: x | AL15: - | AM15: x | AN15: -
A16: 3 | B16: Всего в смете учреждения | E16: 65,038,245.07 | F16: 65,205,820.02 | G16: 47,093,280.77 | H16: - | I16: 2,676,737.41 | J16: 15,435,801.84 | K16: - | L16: - | M16: 83,466,592.99 | N16: 83,466,592.99 | O16: 55,746,276.40 | P16: 21,455,308.71 | Q16: 6,265,007.88 | R16: - | S16: 55,746,276.40 | T16: 50,860,979.40 | U16: 4,885,297.00 | V16: - | W16: - | X16: 5,771,708.04 | Y16: 2,596,934.83 | Z16: 3,174,773.21 | AA16: - | AB16: 14,505,249.90 | AC16: 14,505,249.90 | AD16: - | AE16: 2,704,623.98 | AF16: 991,500.00 | AG16: 657,000.00 | AH16: 3,090,234.67 | AI16: - | AJ16: 47,717,134.59 | AK16: - | AL16: 2,187,360.00 | AM16: 15,133,750.48 | AN16: -
A17: 4 | B17: Зарплата с начислениями | E17: 51,354,415.01 | F17: 51,665,490.12 | G17: 43,196,374.81 | H17: - | I17: 2,676,737.41 | J17: 5,792,377.90 | K17: x | L17: - | M17: 69,093,742.51 | N17: 69,093,742.51 | O17: 52,918,271.40 | P17: 13,085,236.44 | Q17: 3,090,234.67 | R17: - | S17: 52,918,271.40 | T17: 48,032,974.40 | U17: 4,885,297.00 | V17: - | W17: - | X17: - | Y17: - | Z17: - | AA17: - | AB17: 10,380,612.46 | AC17: 10,380,612.46 | AD17: - | AE17: 2,704,623.98 | AF17: - | AG17: x | AH17: 3,090,234.67 | AI17: - | AJ17: 43,376,047.69 | AK17: - | AL17: 2,187,360.00 | AM17: 5,791,007.32 | AN17: x
A18: 5 | B18: прочие расходы (без 211, 213, 223, 291) | E18: 10,028,300.36 | F18: 9,642,547.75 | G18: 3,896,905.96 | H18: - | I18: - | J18: 5,745,641.79 | K18: - | L18: - | M18: 10,287,205.88 | N18: 10,287,205.88 | O18: 2,828,005.00 | P18: 4,284,427.67 | Q18: 3,174,773.21 | R18: - | S18: 2,828,005.00 | T18: 2,828,005.00 | U18: - | V18: - | W18: - | X18: 5,771,708.04 | Y18: 2,596,934.83 | Z18: 3,174,773.21 | AA18: - | AB18: 1,030,492.84 | AC18: 1,030,492.84 | AD18: - | AE18: - | AF18: - | AG18: 657,000.00 | AH18: - | AI18: - | AJ18: 4,341,086.90 | AK18: - | AL18: - | AM18: 5,687,213.46 | AN18: -
A19: 6 | B19: Раздел 1. Полномочия РТ | E19: 49,904,494.59 | F19: 49,770,018.18 | G19: 47,093,280.77 | H19: - | I19: 2,676,737.41 | J19: x | K19: x | L19: x | M19: 60,731,926.83 | N19: 60,731,926.83 | O19: 55,746,276.40 | P19: 1,895,415.76 | Q19: 3,090,234.67 | R19: х | S19: 55,746,276.40 | T19: 50,860,979.40 | U19: 4,885,297.00 | V19: - | W19: - | X19: х | Y19: х | Z19: х | AA19: х | AB19: х | AC19: х | AD19: х | AE19: 1,895,415.76 | AF19: - | AG19: х | AH19: 3,090,234.67 | AI19: - | AJ19: 47,717,134.59 | AK19: - | AL19: 2,187,360.00 | AM19: x | AN19: x
A20: 7 | B20: 211 "Заработная плата" | E20: 34,994,936.78 | F20: 35,158,248.28 | G20: 33,104,166.54 | H20: - | I20: 2,054,081.74 | J20: x | K20: x | L20: x | M20: 44,473,058.24 | N20: 44,473,058.24 | O20: 40,643,833.64 | P20: 1,455,772.47 | Q20: 2,373,452.13 | R20: х | S20: 40,643,833.64 | T20: 36,891,685.41 | U20: 3,752,148.23 | V20: - | W20: - | X20: х | Y20: х | Z20: х | AA20: х | AB20: х | AC20: х | AD20: х | AE20: 1,455,772.47 | AF20: х | AG20: х | AH20: 2,373,452.13 | AI20: - | AJ20: 33,314,936.78 | AK20: - | AL20: 1,680,000.00 | AM20: x | AN20: x
A21: 8 | B21: Заработная плата педагогического персонала | C21: П211004 | D21: 211 | E21: 30,977,068.22 | F21: 31,143,042.25 | G21: 29,088,960.51 | H21: - | I21: 2,054,081.74 | J21: x | K21: x | L21: x | M21: 39,372,207.32 | N21: 39,372,207.32 | O21: 35,736,624.72 | P21: 1,262,130.47 | Q21: 2,373,452.13 | R21: х | S21: 35,736,624.72 | T21: 31,984,476.49 | U21: 3,752,148.23 | V21: - | W21: - | X21: х | Y21: х | Z21: х | AA21: х | AB21: х | AC21: х | AD21: х | AE21: 1,262,130.47 | AF21: х | AG21: х | AH21: 2,373,452.13 | AI21: - | AJ21: 29,297,068.22 | AK21: - | AL21: 1,680,000.00 | AM21: x | AN21: x
A22: 9 | B22: Заработная плата вспомогательного персонала | C22: П211005 | D22: 211 | E22: 4,017,868.56 | F22: 4,015,206.03 | G22: 4,015,206.03 | H22: - | I22: - | J22: x | K22: x | L22: x | M22: 5,100,850.92 | N22: 5,100,850.92 | O22: 4,907,208.92 | P22: 193,642.00 | Q22: - | R22: х | S22: 4,907,208.92 | T22: 4,907,208.92 | U22: - | V22: - | W22: - | X22: х | Y22: х | Z22: х | AA22: х | AB22: х | AC22: х | AD22: х | AE22: 193,642.00 | AF22: х | AG22: х | AH22: - | AI22: - | AJ22: 4,017,868.56 | AK22: - | AL22: - | AM22: x | AN22: x
A23: 10 | B23: Выплата ЕДВ при награждении муниципальными наградами города Казани | C23: П211025 | D23: 211 | E23: - | F23: - | G23: - | H23: - | I23: - | J23: x | K23: x | L23: x | M23: - | N23: - | O23: - | P23: - | Q23: - | R23: х | S23: - | T23: - | U23: - | V23: - | W23: - | X23: х | Y23: х | Z23: х | AA23: х | AB23: х | AC23: х | AD23: х | AE23: - | AF23: х | AG23: х | AH23: - | AI23: - | AJ23: - | AK23: - | AL23: - | AM23: x | AN23: x
A24: 11 | B24: 213 "Начисления на оплату труда" | E24: 10,568,470.91 | F24: 10,642,091.31 | G24: 10,019,435.64 | H24: - | I24: 622,655.67 | J24: x | K24: x | L24: x | M24: 13,430,863.59 | N24: 13,430,863.59 | O24: 12,274,437.76 | P24: 439,643.29 | Q24: 716,782.54 | R24: х | S24: 12,274,437.76 | T24: 11,141,288.99 | U24: 1,133,148.77 | V24: - | W24: - | X24: х | Y24: х | Z24: х | AA24: х | AB24: х | AC24: х | AD24: х | AE24: 439,643.29 | AF24: х | AG24: х | AH24: 716,782.54 | AI24: - | AJ24: 10,061,110.91 | AK24: - | AL24: 507,360.00 | AM24: x | AN24: x
A25: 12 | B25: Начисления на заработную плату педагогического персонала | C25: П213004 | D25: 213 | E25: 9,355,074.61 | F25: 9,428,695.01 | G25: 8,806,039.34 | H25: - | I25: 622,655.67 | J25: x | K25: x | L25: x | M25: 11,890,406.61 | N25: 11,890,406.61 | O25: 10,792,460.67 | P25: 381,163.40 | Q25: 716,782.54 | R25: х | S25: 10,792,460.67 | T25: 9,659,311.90 | U25: 1,133,148.77 | V25: - | W25: - | X25: х | Y25: х | Z25: х | AA25: х | AB25: х | AC25: х | AD25: х | AE25: 381,163.40 | AF25: х | AG25: х | AH25: 716,782.54 | AI25: - | AJ25: 8,847,714.61 | AK25: - | AL25: 507,360.00 | AM25: x | AN25: x
A26: 13 | B26: Начисления на заработную плату вспомогательного персонала | C26: П213005 | D26: 213 | E26: 1,213,396.30 | F26: 1,213,396.30 | G26: 1,213,396.30 | H26: - | I26: - | J26: x | K26: x | L26: x | M26: 1,540,456.98 | N26: 1,540,456.98 | O26: 1,481,977.09 | P26: 58,479.89 | Q26: - | R26: х | S26: 1,481,977.09 | T26: 1,481,977.09 | U26: - | V26: - | W26: - | X26: х | Y26: х | Z26: х | AA26: х | AB26: х | AC26: х | AD26: х | AE26: 58,479.89 | AF26: х | AG26: х | AH26: - | AI26: - | AJ26: 1,213,396.30 | AK26: - | AL26: - | AM26: x | AN26: x
A27: 14 | B27: Начисления на выплату ЕДВ при награждении муниципальными наградами города Казани | C27: П213025 | D27: 213 | E27: - | F27: - | G27: - | H27: - | I27: - | J27: x | K27: x | L27: x | M27: - | N27: - | O27: - | P27: - | Q27: - | R27: х | S27: - | T27: - | U27: - | V27: - | W27: - | X27: х | Y27: х | Z27: х | AA27: х | AB27: х | AC27: х | AD27: х | AE27: - | AF27: х | AG27: х | AH27: - | AI27: - | AJ27: - | AK27: - | AL27: - | AM27: x | AN27: x
A28: 15 | B28: 226 "Прочие работы, услуги" | E28: - | F28: - | G28: - | H28: - | I28: x | J28: x | K28: x | L28: x | M28: - | N28: - | O28: - | P28: - | Q28: х | R28: х | S28: - | T28: - | U28: х | V28: х | W28: - | X28: х | Y28: х | Z28: х | AA28: х | AB28: х | AC28: х | AD28: х | AE28: х | AF28: - | AG28: х | AH28: x | AI28: - | AJ28: - | AK28: - | AL28: x | AM28: x | AN28: x
A29: 16 | B29: Приобретение неисключительных (пользовательских) прав на программное обеспечение (отраслевых, бухгалтерских программ) | C29: П226010 | D29: 226 | E29: - | F29: - | G29: - | H29: - | I29: x | J29: x | K29: x | L29: x | M29: - | N29: - | O29: - | P29: - | Q29: х | R29: х | S29: - | T29: - | U29: х | V29: х | W29: - | X29: х | Y29: х | Z29: х | AA29: х | AB29: х | AC29: х | AD29: х | AE29: х | AF29: - | AG29: х | AH29: x | AI29: - | AJ29: - | AK29: - | AL29: x | AM29: x | AN29: x
A30: 17 | B30: За участие в семинарах, совещаниях, конференциях, курсах повышения квалификации, проф.обучение, за образовательные услуги, организация и проведение совещаний, конкурсов, олимпиад, выставок, мероприятий, конференций, соревнований, экскурсий | C30: П226052 | D30: 226 | E30: - | F30: - | G30: - | H30: - | I30: x | J30: x | K30: x | L30: x | M30: - | N30: - | O30: - | P30: - | Q30: х | R30: х | S30: - | T30: - | U30: х | V30: х | W30: - | X30: х | Y30: х | Z30: х | AA30: х | AB30: х | AC30: х | AD30: х | AE30: х | AF30: - | AG30: х | AH30: x | AI30: - | AJ30: - | AK30: - | AL30: x | AM30: x | AN30: x
A31: 18 | B31: 265 "Пособия по социальной помощи, выплачиваемые работодателями, нанимателями бывшим работникам в натуральной форме" | E31: - | F31: - | G31: - | H31: - | I31: - | J31: x | K31: x | L31: x | M31: - | N31: - | O31: - | P31: - | Q31: - | R31: х | S31: - | T31: - | U31: х | V31: х | W31: - | X31: х | Y31: х | Z31: х | AA31: х | AB31: х | AC31: х | AD31: х | AE31: - | AF31: х | AG31: х | AH31: - | AI31: - | AJ31: - | AK31: - | AL31: - | AM31: x | AN31: x
A32: 19 | B32: Прочие расходы по социальной помощи, выплачиваемые работодателями, нанимателями бывшим работникам в натуральной форме | C32: П265099 | D32: 265 | E32: - | F32: - | G32: - | H32: - | I32: - | J32: x | K32: x | L32: x | M32: - | N32: - | O32: - | P32: - | Q32: - | R32: х | S32: - | T32: - | U32: х | V32: х | W32: - | X32: х | Y32: х | Z32: х | AA32: х | AB32: х | AC32: х | AD32: х | AE32: - | AF32: х | AG32: х | AH32: - | AI32: - | AJ32: - | AK32: - | AL32: - | AM32: x | AN32: x
A33: 20 | B33: 266 «Социальные пособия и компенсации персоналу в денежной форме» | E33: - | F33: 72,772.63 | G33: 72,772.63 | H33: - | I33: - | J33: x | K33: x | L33: x | M33: - | N33: - | O33: - | P33: - | Q33: - | R33: х | S33: - | T33: - | U33: х | V33: х | W33: - | X33: х | Y33: х | Z33: х | AA33: х | AB33: х | AC33: х | AD33: х | AE33: - | AF33: х | AG33: х | AH33: - | AI33: - | AJ33: - | AK33: - | AL33: - | AM33: x | AN33: x
A34: 21 | B34: Расходы по социальным пособиям и компенсациям персоналу в денежной форме | C34: П266099 | D34: 266 | E34: - | F34: 72,772.63 | G34: 72,772.63 | H34: - | I34: - | J34: x | K34: x | L34: x | M34: - | N34: - | O34: - | P34: - | Q34: - | R34: х | S34: - | T34: - | U34: х | V34: х | W34: - | X34: х | Y34: х | Z34: х | AA34: х | AB34: х | AC34: х | AD34: х | AE34: - | AF34: х | AG34: х | AH34: - | AI34: - | AJ34: - | AK34: - | AL34: - | AM34: x | AN34: x
A35: 22 | B35: 310 "Увеличение стоимости основных средств" | E35: 740,000.00 | F35: 2,296,905.96 | G35: 2,296,905.96 | H35: - | I35: x | J35: x | K35: x | L35: x | M35: 2,734,825.09 | N35: 2,734,825.09 | O35: 2,734,825.09 | P35: - | Q35: х | R35: х | S35: 2,734,825.09 | T35: 2,734,825.09 | U35: х | V35: х | W35: - | X35: х | Y35: х | Z35: х | AA35: х | AB35: х | AC35: х | AD35: х | AE35: х | AF35: - | AG35: х | AH35: x | AI35: - | AJ35: 740,000.00 | AK35: - | AL35: x | AM35: x | AN35: x
A36: 23 | B36: Приобретение автоматизированных рабочих мест,транспортно-коммуникационного оборудования, серверного, периферийного и т.п. оборудования | C36: Н310004 | D36: 310 | E36: 680,000.00 | F36: 1,412,800.00 | G36: 1,412,800.00 | H36: - | I36: x | J36: x | K36: x | L36: x | M36: 606,820.09 | N36: 606,820.09 | O36: 606,820.09 | P36: - | Q36: х | R36: х | S36: 606,820.09 | T36: 606,820.09 | U36: х | V36: х | W36: - | X36: х | Y36: х | Z36: х | AA36: х | AB36: х | AC36: х | AD36: х | AE36: х | AF36: - | AG36: х | AH36: x | AI36: - | AJ36: 680,000.00 | AK36: - | AL36: x | AM36: x | AN36: x
A37: 24 | B37: Приобретение учебников для общеобразовательных организаций | C37: П310010 | D37: 310 | E37: - | F37: - | G37: - | H37: - | I37: x | J37: x | K37: x | L37: x | M37: 2,008,005.00 | N37: 2,008,005.00 | O37: 2,008,005.00 | P37: - | Q37: х | R37: х | S37: 2,008,005.00 | T37: 2,008,005.00 | U37: х | V37: х | W37: - | X37: х | Y37: х | Z37: х | AA37: х | AB37: х | AC37: х | AD37: х | AE37: х | AF37: - | AG37: х | AH37: x | AI37: - | AJ37: - | AK37: - | AL37: x | AM37: x | AN37: x
A38: 25 | B38: Прочие первоочередные расходы по увеличению стоимости основных средств | C38: П310098 | D38: 310 | E38: - | F38: - | G38: - | H38: - | I38: x | J38: x | K38: x | L38: x | M38: - | N38: - | O38: - | P38: - | Q38: х | R38: х | S38: - | T38: - | U38: х | V38: х | W38: - | X38: х | Y38: х | Z38: х | AA38: х | AB38: х | AC38: х | AD38: х | AE38: х | AF38: - | AG38: х | AH38: x | AI38: - | AJ38: - | AK38: - | AL38: x | AM38: x | AN38: x
A39: 26 | B39: Прочие расходы по увеличению стоимости основных средств, не включенные в вышеуказанные дополнительные коды экономической классификации | C39: Н310099 | D39: 310 | E39: 60,000.00 | F39: 884,105.96 | G39: 884,105.96 | H39: - | I39: x | J39: x | K39: x | L39: x | M39: 120,000.00 | N39: 120,000.00 | O39: 120,000.00 | P39: - | Q39: х | R39: х | S39: 120,000.00 | T39: 120,000.00 | U39: х | V39: х | W39: - | X39: х | Y39: х | Z39: х | AA39: х | AB39: х | AC39: х | AD39: х | AE39: х | AF39: - | AG39: х | AH39: x | AI39: - | AJ39: 60,000.00 | AK39: - | AL39: x | AM39: x | AN39: x
A40: 27 | B40: 345 "Увеличение стоимости мягкого инвентаря" | E40: - | F40: - | G40: - | H40: - | I40: x | J40: x | K40: x | L40: x | M40: - | N40: - | O40: - | P40: - | Q40: х | R40: х | S40: - | T40: - | U40: х | V40: х | W40: - | X40: х | Y40: х | Z40: х | AA40: х | AB40: х | AC40: х | AD40: х | AE40: х | AF40: - | AG40: х | AH40: x | AI40: - | AJ40: - | AK40: - | AL40: x | AM40: x | AN40: x
A41: 28 | B41: Закупка мягкого инвентаря, одежды, обмундирования | C41: П345002 | D41: 345 | E41: - | F41: - | G41: - | H41: - | I41: x | J41: x | K41: x | L41: x | M41: - | N41: - | O41: - | P41: - | Q41: х | R41: х | S41: - | T41: - | U41: х | V41: х | W41: - | X41: х | Y41: х | Z41: х | AA41: х | AB41: х | AC41: х | AD41: х | AE41: х | AF41: - | AG41: х | AH41: x | AI41: - | AJ41: - | AK41: - | AL41: x | AM41: x | AN41: x
A42: 29 | B42: 349 "Увеличение стоимости прочих материальных запасов однократного применения" | E42: 50,000.00 | F42: 50,000.00 | G42: 50,000.00 | H42: - | I42: x | J42: x | K42: x | L42: x | M42: - | N42: - | O42: - | P42: - | Q42: х | R42: х | S42: - | T42: - | U42: х | V42: х | W42: - | X42: х | Y42: х | Z42: х | AA42: х | AB42: х | AC42: х | AD42: х | AE42: х | AF42: - | AG42: х | AH42: x | AI42: - | AJ42: 50,000.00 | AK42: - | AL42: x | AM42: x | AN42: x
A43: 30 | B43: Приобретение (изготовление) подарочной и сувенирной продукции (поздравительные открытки, адреса, почетные грамоты, дипломы, благодарственные письма, цветы, сувенирная продукция, медали, кубки, призы, подарки) | C43: Н349011 | D43: 349 | E43: - | F43: - | G43: - | H43: - | I43: x | J43: x | K43: x | L43: x | M43: - | N43: - | O43: - | P43: - | Q43: х | R43: х | S43: - | T43: - | U43: х | V43: х | W43: - | X43: х | Y43: х | Z43: х | AA43: х | AB43: х | AC43: х | AD43: х | AE43: х | AF43: - | AG43: х | AH43: x | AI43: - | AJ43: - | AK43: - | AL43: x | AM43: x | AN43: x
A44: 31 | B44: Расходы по увеличению стоимости прочих материальных запасов однократного применения | C44: П349098 | D44: 349 | E44: 50,000.00 | F44: 50,000.00 | G44: 50,000.00 | H44: - | I44: x | J44: x | K44: x | L44: x | M44: - | N44: - | O44: - | P44: - | Q44: х | R44: х | S44: - | T44: - | U44: х | V44: х | W44: - | X44: х | Y44: х | Z44: х | AA44: х | AB44: х | AC44: х | AD44: х | AE44: х | AF44: - | AG44: х | AH44: x | AI44: - | AJ44: 50,000.00 | AK44: - | AL44: x | AM44: x | AN44: x
A45: 32 | B45: 346 "Увеличение стоимости прочих оборотных запасов (материалов)" | E45: 3,551,086.90 | F45: 1,550,000.00 | G45: 1,550,000.00 | H45: - | I45: x | J45: x | K45: x | L45: x | M45: 93,179.91 | N45: 93,179.91 | O45: 93,179.91 | P45: - | Q45: х | R45: х | S45: 93,179.91 | T45: 93,179.91 | U45: х | V45: х | W45: - | X45: х | Y45: х | Z45: х | AA45: х | AB45: х | AC45: х | AD45: х | AE45: х | AF45: - | AG45: х | AH45: x | AI45: - | AJ45: 3,551,086.90 | AK45: - | AL45: x | AM45: x | AN45: x
A46: 33 | B46: Закупка запчастей к оборудованию | C46: П346003 | D46: 346 | E46: - | F46: - | G46: - | H46: - | I46: x | J46: x | K46: x | L46: x | M46: - | N46: - | O46: - | P46: - | Q46: х | R46: х | S46: - | T46: - | U46: х | V46: х | W46: - | X46: х | Y46: х | Z46: х | AA46: х | AB46: х | AC46: х | AD46: х | AE46: х | AF46: - | AG46: х | AH46: x | AI46: - | AJ46: - | AK46: - | AL46: x | AM46: x | AN46: x
A47: 34 | B47: Закупка материалов, используемых в процессе обучения | C47: П346004 | D47: 346 | E47: 50,000.00 | F47: 50,000.00 | G47: 50,000.00 | H47: - | I47: x | J47: x | K47: x | L47: x | M47: 93,179.91 | N47: 93,179.91 | O47: 93,179.91 | P47: - | Q47: х | R47: х | S47: 93,179.91 | T47: 93,179.91 | U47: х | V47: х | W47: - | X47: х | Y47: х | Z47: х | AA47: х | AB47: х | AC47: х | AD47: х | AE47: х | AF47: - | AG47: х | AH47: x | AI47: - | AJ47: 50,000.00 | AK47: - | AL47: x | AM47: x | AN47: x
A48: 35 | B48: Приобретение канцелярских, хозяйственных товаров, расходных материалов | C48: П346017 | D48: 346 | E48: - | F48: - | G48: - | H48: - | I48: x | J48: x | K48: x | L48: x | M48: - | N48: - | O48: - | P48: - | Q48: х | R48: х | S48: - | T48: - | U48: х | V48: х | W48: - | X48: х | Y48: х | Z48: х | AA48: х | AB48: х | AC48: х | AD48: х | AE48: х | AF48: - | AG48: х | AH48: x | AI48: - | AJ48: - | AK48: - | AL48: x | AM48: x | AN48: x
A49: 36 | B49: Прочие первоочередные расходы по увеличению стоимости прочих материальных запасов | C49: П346098 | D49: 346 | E49: - | F49: - | G49: - | H49: - | I49: x | J49: x | K49: x | L49: x | M49: - | N49: - | O49: - | P49: - | Q49: х | R49: х | S49: - | T49: - | U49: х | V49: х | W49: - | X49: х | Y49: х | Z49: х | AA49: х | AB49: х | AC49: х | AD49: х | AE49: х | AF49: - | AG49: х | AH49: x | AI49: - | AJ49: - | AK49: - | AL49: x | AM49: x | AN49: x
A50: 37 | B50: Прочие расходы по увеличению стоимости прочих материальных запасов, не включенные в вышеуказанные дополнительные коды экономической классификации (Ассигнования) | C50: Н346099 | D50: 346 | E50: 3,501,086.90 | F50: 1,500,000.00 | G50: 1,500,000.00 | H50: - | I50: x | J50: x | K50: x | L50: x | M50: - | N50: - | O50: - | P50: - | Q50: х | R50: х | S50: - | T50: - | U50: х | V50: х | W50: - | X50: х | Y50: х | Z50: х | AA50: х | AB50: х | AC50: х | AD50: х | AE50: х | AF50: - | AG50: х | AH50: x | AI50: - | AJ50: 3,501,086.90 | AK50: - | AL50: x | AM50: x | AN50: x
A51: 38 | B51: Прочие расходы по увеличению стоимости прочих материальных запасов, не включенные в вышеуказанные дополнительные коды экономической классификации (Лимиты) | C51: Н346099 | D51: 346 | E51: 3,501,086.90 | F51: 1,500,000.00 | G51: 1,500,000.00 | H51: - | I51: x | J51: x | K51: x | L51: x | M51: - | N51: - | O51: - | P51: - | Q51: х | R51: х | S51: - | T51: - | U51: х | V51: х | W51: - | X51: х | Y51: х | Z51: х | AA51: х | AB51: х | AC51: х | AD51: х | AE51: х | AF51: - | AG51: х | AH51: x | AI51: - | AJ51: 3,501,086.90 | AK51: - | AL51: x | AM51: x | AN51: x
A52: 39 | B52: Раздел 2. Полномочия города | E52: 15,133,750.48 | F52: 15,435,801.84 | G52: x | H52: x | I52: x | J52: 15,435,801.84 | K52: - | L52: - | M52: 22,734,666.16 | N52: 22,734,666.16 | O52: х | P52: 19,559,892.95 | Q52: 3,174,773.21 | R52: - | S52: х | T52: х | U52: х | V52: х | W52: х | X52: 5,771,708.04 | Y52: 2,596,934.83 | Z52: 3,174,773.21 | AA52: - | AB52: 14,505,249.90 | AC52: 14,505,249.90 | AD52: - | AE52: 809,208.22 | AF52: 991,500.00 | AG52: 657,000.00 | AH52: x | AI52: - | AJ52: x | AK52: x | AL52: x | AM52: 15,133,750.48 | AN52: -
A53: 40 | B53: Зарплата с начислениями | E53: 5,791,007.32 | F53: 5,792,377.90 | G53: x | H53: x | I53: x | J53: 5,792,377.90 | K53: x | L53: - | M53: 11,189,820.68 | N53: 11,189,820.68 | O53: х | P53: 11,189,820.68 | Q53: х | R53: - | S53: х | T53: х | U53: х | V53: х | W53: х | X53: - | Y53: - | Z53: х | AA53: - | AB53: 10,380,612.46 | AC53: 10,380,612.46 | AD53: - | AE53: 809,208.22 | AF53: х | AG53: x | AH53: x | AI53: - | AJ53: x | AK53: x | AL53: x | AM53: 5,791,007.32 | AN53: x
A54: 41 | B54: 211 "Заработная плата" | E54: 4,447,778.28 | F54: 4,445,705.53 | G54: x | H54: x | I54: x | J54: 4,445,705.53 | K54: x | L54: - | M54: 8,594,332.32 | N54: 8,594,332.32 | O54: х | P54: 8,594,332.32 | Q54: х | R54: - | S54: х | T54: х | U54: х | V54: х | W54: х | X54: - | Y54: - | Z54: х | AA54: - | AB54: 7,972,820.63 | AC54: 7,972,820.63 | AD54: - | AE54: 621,511.69 | AF54: х | AG54: x | AH54: x | AI54: - | AJ54: x | AK54: x | AL54: x | AM54: 4,447,778.28 | AN54: x
A55: 42 | B55: Заработная плата педагогического персонала | C55: П211004 | D55: 211 | E55: - | F55: - | G55: x | H55: x | I55: x | J55: - | K55: x | L55: - | M55: - | N55: - | O55: х | P55: - | Q55: х | R55: - | S55: х | T55: х | U55: х | V55: х | W55: х | X55: - | Y55: - | Z55: х | AA55: - | AB55: - | AC55: - | AD55: - | AE55: - | AF55: х | AG55: x | AH55: x | AI55: - | AJ55: x | AK55: x | AL55: x | AM55: - | AN55: x
A56: 43 | B56: Заработная плата вспомогательного персонала | C56: П211005 | D56: 211 | E56: 4,447,778.28 | F56: 4,445,705.53 | G56: x | H56: x | I56: x | J56: 4,445,705.53 | K56: x | L56: - | M56: 5,148,793.44 | N56: 5,148,793.44 | O56: х | P56: 5,148,793.44 | Q56: х | R56: - | S56: х | T56: х | U56: х | V56: х | W56: х | X56: - | Y56: - | Z56: х | AA56: - | AB56: 4,527,281.75 | AC56: 4,527,281.75 | AD56: - | AE56: 621,511.69 | AF56: х | AG56: x | AH56: x | AI56: - | AJ56: x | AK56: x | AL56: x | AM56: 4,447,778.28 | AN56: x
A57: 44 | B57: Выплата ЕДВ при награждении муниципальными наградами города Казани | C57: П211025 | D57: 211 | E57: - | F57: - | G57: x | H57: x | I57: x | J57: - | K57: x | L57: - | M57: - | N57: - | O57: х | P57: - | Q57: х | R57: - | S57: х | T57: х | U57: х | V57: х | W57: х | X57: - | Y57: - | Z57: х | AA57: - | AB57: - | AC57: - | AD57: - | AE57: - | AF57: х | AG57: x | AH57: x | AI57: - | AJ57: x | AK57: x | AL57: x | AM57: - | AN57: x
A58: 45 | B58: Кухонные работники | C58: П900200 | D58: 211 | E58: - | F58: - | G58: x | H58: x | I58: x | J58: - | K58: x | L58: - | M58: 3,445,538.88 | N58: 3,445,538.88 | O58: х | P58: 3,445,538.88 | Q58: х | R58: - | S58: х | T58: х | U58: х | V58: х | W58: х | X58: - | Y58: - | Z58: х | AA58: - | AB58: 3,445,538.88 | AC58: 3,445,538.88 | AD58: - | AE58: - | AF58: х | AG58: x | AH58: x | AI58: - | AJ58: x | AK58: x | AL58: x | AM58: - | AN58: x
A59: 46 | B59: 212 "Прочие несоциальные выплаты персоналу в денежной форме" | E59: - | F59: - | G59: x | H59: x | I59: x | J59: - | K59: x | L59: - | M59: - | N59: - | O59: х | P59: - | Q59: х | R59: - | S59: х | T59: х | U59: х | V59: х | W59: х | X59: - | Y59: - | Z59: х | AA59: - | AB59: - | AC59: - | AD59: х | AE59: х | AF59: - | AG59: x | AH59: x | AI59: - | AJ59: x | AK59: x | AL59: x | AM59: - | AN59: x
A60: 47 | B60: Суточные работникам (сотрудникам) при служебных командировках (кроме водителей) | C60: П212006 | D60: 212 | E60: - | F60: - | G60: x | H60: x | I60: x | J60: - | K60: x | L60: - | M60: - | N60: - | O60: х | P60: - | Q60: х | R60: - | S60: х | T60: х | U60: х | V60: х | W60: х | X60: - | Y60: - | Z60: х | AA60: - | AB60: - | AC60: - | AD60: х | AE60: х | AF60: - | AG60: x | AH60: x | AI60: - | AJ60: x | AK60: x | AL60: x | AM60: - | AN60: x
A61: 48 | B61: 213 "Начисления на оплату труда" | E61: 1,343,229.04 | F61: 1,343,229.04 | G61: x | H61: x | I61: x | J61: 1,343,229.04 | K61: x | L61: - | M61: 2,595,488.36 | N61: 2,595,488.36 | O61: х | P61: 2,595,488.36 | Q61: х | R61: - | S61: х | T61: х | U61: х | V61: х | W61: х | X61: - | Y61: - | Z61: х | AA61: - | AB61: 2,407,791.83 | AC61: 2,407,791.83 | AD61: - | AE61: 187,696.53 | AF61: х | AG61: x | AH61: x | AI61: - | AJ61: x | AK61: x | AL61: x | AM61: 1,343,229.04 | AN61: x
A62: 49 | B62: Начисления на заработную плату педагогического персонала | C62: П213004 | D62: 213 | E62: - | F62: - | G62: x | H62: x | I62: x | J62: - | K62: x | L62: - | M62: - | N62: - | O62: х | P62: - | Q62: х | R62: - | S62: х | T62: х | U62: х | V62: х | W62: х | X62: - | Y62: - | Z62: х | AA62: - | AB62: - | AC62: - | AD62: - | AE62: - | AF62: х | AG62: x | AH62: x | AI62: - | AJ62: x | AK62: x | AL62: x | AM62: - | AN62: x
A63: 50 | B63: Начисления на заработную плату вспомогательного персонала | C63: П213005 | D63: 213 | E63: 1,343,229.04 | F63: 1,343,229.04 | G63: x | H63: x | I63: x | J63: 1,343,229.04 | K63: x | L63: - | M63: 1,554,935.62 | N63: 1,554,935.62 | O63: х | P63: 1,554,935.62 | Q63: х | R63: - | S63: х | T63: х | U63: х | V63: х | W63: х | X63: - | Y63: - | Z63: х | AA63: - | AB63: 1,367,239.09 | AC63: 1,367,239.09 | AD63: - | AE63: 187,696.53 | AF63: х | AG63: x | AH63: x | AI63: - | AJ63: x | AK63: x | AL63: x | AM63: 1,343,229.04 | AN63: x
A64: 51 | B64: Начисления на выплату ЕДВ при награждении муниципальными наградами города Казани | C64: П213025 | D64: 213 | E64: - | F64: - | G64: x | H64: x | I64: x | J64: - | K64: x | L64: - | M64: - | N64: - | O64: х | P64: - | Q64: х | R64: - | S64: х | T64: х | U64: х | V64: х | W64: х | X64: - | Y64: - | Z64: х | AA64: - | AB64: - | AC64: - | AD64: - | AE64: - | AF64: х | AG64: x | AH64: x | AI64: - | AJ64: x | AK64: x | AL64: x | AM64: - | AN64: x
A65: 52 | B65: Кухонные работники | C65: П900200 | D65: 213 | E65: - | F65: - | G65: x | H65: x | I65: x | J65: - | K65: x | L65: - | M65: 1,040,552.74 | N65: 1,040,552.74 | O65: х | P65: 1,040,552.74 | Q65: х | R65: - | S65: х | T65: х | U65: х | V65: х | W65: х | X65: - | Y65: - | Z65: х | AA65: - | AB65: 1,040,552.74 | AC65: 1,040,552.74 | AD65: - | AE65: - | AF65: х | AG65: x | AH65: x | AI65: - | AJ65: x | AK65: x | AL65: x | AM65: - | AN65: x
A66: 53 | B66: 223 "Коммунальные услуги" | E66: 3,033,763.70 | F66: 3,269,635.15 | G66: x | H66: x | I66: x | J66: 3,269,635.15 | K66: x | L66: - | M66: 3,402,910.60 | N66: 3,402,910.60 | O66: х | P66: 3,402,910.60 | Q66: х | R66: - | S66: х | T66: х | U66: х | V66: х | W66: х | X66: - | Y66: х | Z66: х | AA66: - | AB66: 3,094,144.60 | AC66: 3,094,144.60 | AD66: х | AE66: х | AF66: 308,766.00 | AG66: x | AH66: x | AI66: - | AJ66: x | AK66: x | AL66: x | AM66: 3,033,763.70 | AN66: x
A67: 54 | B67: Электроснабжение | C67: П223001 | D67: 223 | E67: 1,093,751.00 | F67: 1,256,623.00 | G67: x | H67: x | I67: x | J67: 1,256,623.00 | K67: x | L67: - | M67: 1,316,943.00 | N67: 1,316,943.00 | O67: х | P67: 1,316,943.00 | Q67: х | R67: - | S67: х | T67: х | U67: х | V67: х | W67: х | X67: - | Y67: х | Z67: х | AA67: - | AB67: 1,185,249.00 | AC67: 1,185,249.00 | AD67: х | AE67: х | AF67: 131,694.00 | AG67: x | AH67: x | AI67: - | AJ67: x | AK67: x | AL67: x | AM67: 1,093,751.00 | AN67: x
A68: 55 | B68: Теплоснабжение | C68: П223002 | D68: 223 | E68: 1,568,295.00 | F68: 1,599,487.00 | G68: x | H68: x | I68: x | J68: 1,599,487.00 | K68: x | L68: - | M68: 1,631,534.00 | N68: 1,631,534.00 | O68: х | P68: 1,631,534.00 | Q68: х | R68: - | S68: х | T68: х | U68: х | V68: х | W68: х | X68: - | Y68: х | Z68: х | AA68: - | AB68: 1,468,381.00 | AC68: 1,468,381.00 | AD68: х | AE68: х | AF68: 163,153.00 | AG68: x | AH68: x | AI68: - | AJ68: x | AK68: x | AL68: x | AM68: 1,568,295.00 | AN68: x
A69: 56 | B69: Газоснабжение | C69: П223003 | D69: 223 | E69: - | F69: - | G69: x | H69: x | I69: x | J69: - | K69: x | L69: - | M69: - | N69: - | O69: х | P69: - | Q69: х | R69: - | S69: х | T69: х | U69: х | V69: х | W69: х | X69: - | Y69: х | Z69: х | AA69: - | AB69: - | AC69: - | AD69: х | AE69: х | AF69: - | AG69: x | AH69: x | AI69: - | AJ69: x | AK69: x | AL69: x | AM69: - | AN69: x
A70: 57 | B70: Водоснабжение | C70: П223004 | D70: 223 | E70: 122,154.00 | F70: 134,254.00 | G70: x | H70: x | I70: x | J70: 134,254.00 | K70: x | L70: - | M70: 139,186.00 | N70: 139,186.00 | O70: х | P70: 139,186.00 | Q70: х | R70: - | S70: х | T70: х | U70: х | V70: х | W70: х | X70: - | Y70: х | Z70: х | AA70: - | AB70: 125,267.00 | AC70: 125,267.00 | AD70: х | AE70: х | AF70: 13,919.00 | AG70: x | AH70: x | AI70: - | AJ70: x | AK70: x | AL70: x | AM70: 122,154.00 | AN70: x
A71: 58 | B71: Оплата энергосервисных договоров (контрактов) | C71: П223010 | D71: 223 | E71: - | F71: - | G71: x | H71: x | I71: x | J71: - | K71: x | L71: - | M71: - | N71: - | O71: х | P71: - | Q71: х | R71: - | S71: х | T71: х | U71: х | V71: х | W71: х | X71: - | Y71: х | Z71: х | AA71: - | AB71: - | AC71: - | AD71: х | AE71: х | AF71: - | AG71: x | AH71: x | AI71: - | AJ71: x | AK71: x | AL71: x | AM71: - | AN71: x
A72: 59 | B72: Оплата договоров на вывоз твердых коммунальных отходов с региональным оператором | C72: П223017 | D72: 223 | E72: 249,563.70 | F72: 279,271.15 | G72: x | H72: x | I72: x | J72: 279,271.15 | K72: x | L72: - | M72: 315,247.60 | N72: 315,247.60 | O72: х | P72: 315,247.60 | Q72: х | R72: - | S72: х | T72: х | U72: х | V72: х | W72: х | X72: - | Y72: х | Z72: х | AA72: - | AB72: 315,247.60 | AC72: 315,247.60 | AD72: х | AE72: х | AF72: - | AG72: x | AH72: x | AI72: - | AJ72: x | AK72: x | AL72: x | AM72: 249,563.70 | AN72: x
A73: 60 | B73: Прочие коммунальные услуги | C73: П223099 | D73: 223 | E73: - | F73: - | G73: x | H73: x | I73: x | J73: - | K73: x | L73: - | M73: - | N73: - | O73: х | P73: - | Q73: х | R73: - | S73: х | T73: х | U73: х | V73: х | W73: х | X73: - | Y73: х | Z73: х | AA73: - | AB73: - | AC73: - | AD73: х | AE73: х | AF73: - | AG73: x | AH73: x | AI73: - | AJ73: x | AK73: x | AL73: x | AM73: - | AN73: x
A74: 61 | B74: Прочие расходы | E74: 5,687,213.46 | F74: 5,745,641.79 | G74: x | H74: x | I74: x | J74: 5,745,641.79 | K74: - | L74: - | M74: 7,459,200.88 | N74: 7,459,200.88 | O74: х | P74: 4,284,427.67 | Q74: 3,174,773.21 | R74: - | S74: х | T74: х | U74: х | V74: х | W74: х | X74: 5,771,708.04 | Y74: 2,596,934.83 | Z74: 3,174,773.21 | AA74: - | AB74: 1,030,492.84 | AC74: 1,030,492.84 | AD74: - | AE74: х | AF74: - | AG74: 657,000.00 | AH74: x | AI74: - | AJ74: x | AK74: x | AL74: x | AM74: 5,687,213.46 | AN74: -
A75: 62 | B75: 221 "Услуги связи" | E75: 22,200.29 | F75: 22,200.29 | G75: x | H75: x | I75: x | J75: 22,200.29 | K75: x | L75: - | M75: 22,200.29 | N75: 22,200.29 | O75: х | P75: 22,200.29 | Q75: х | R75: - | S75: х | T75: х | U75: х | V75: х | W75: х | X75: - | Y75: - | Z75: х | AA75: - | AB75: 22,200.29 | AC75: 22,200.29 | AD75: х | AE75: х | AF75: - | AG75: x | AH75: x | AI75: - | AJ75: x | AK75: x | AL75: x | AM75: 22,200.29 | AN75: x
A76: 63 | B76: Услуги телефонной связи (абонентская и повременная плата (ежемесячный платеж) за местные, междугородные, международные переговоры) | C76: П221001 | D76: 221 | E76: 22,200.29 | F76: 22,200.29 | G76: x | H76: x | I76: x | J76: 22,200.29 | K76: x | L76: - | M76: 22,200.29 | N76: 22,200.29 | O76: х | P76: 22,200.29 | Q76: х | R76: - | S76: х | T76: х | U76: х | V76: х | W76: х | X76: - | Y76: - | Z76: х | AA76: - | AB76: 22,200.29 | AC76: 22,200.29 | AD76: х | AE76: х | AF76: - | AG76: x | AH76: x | AI76: - | AJ76: x | AK76: x | AL76: x | AM76: 22,200.29 | AN76: x
A77: 64 | B77: Плата за предоставление доступа (разовый платеж) к телефонной линии связи и Интернет | C77: П221002 | D77: 221 | E77: - | F77: - | G77: x | H77: x | I77: x | J77: - | K77: x | L77: - | M77: - | N77: - | O77: х | P77: - | Q77: х | R77: - | S77: х | T77: х | U77: х | V77: х | W77: х | X77: - | Y77: - | Z77: х | AA77: - | AB77: - | AC77: - | AD77: х | AE77: х | AF77: - | AG77: x | AH77: x | AI77: - | AJ77: x | AK77: x | AL77: x | AM77: - | AN77: x
A78: 65 | B78: Услуги сотовой связи | C78: П221010 | D78: 221 | E78: - | F78: - | G78: x | H78: x | I78: x | J78: - | K78: x | L78: - | M78: - | N78: - | O78: х | P78: - | Q78: х | R78: - | S78: х | T78: х | U78: х | V78: х | W78: х | X78: - | Y78: - | Z78: х | AA78: - | AB78: - | AC78: - | AD78: х | AE78: х | AF78: - | AG78: x | AH78: x | AI78: - | AJ78: x | AK78: x | AL78: x | AM78: - | AN78: x
A79: 66 | B79: Плата за услуги сети Интернет | C79: П221012 | D79: 221 | E79: - | F79: - | G79: x | H79: x | I79: x | J79: - | K79: x | L79: - | M79: - | N79: - | O79: х | P79: - | Q79: х | R79: - | S79: х | T79: х | U79: х | V79: х | W79: х | X79: - | Y79: - | Z79: х | AA79: - | AB79: - | AC79: - | AD79: х | AE79: х | AF79: - | AG79: x | AH79: x | AI79: - | AJ79: x | AK79: x | AL79: x | AM79: - | AN79: x
A80: 67 | B80: Прочие услуги связи | C80: П221099 | D80: 221 | E80: - | F80: - | G80: x | H80: x | I80: x | J80: - | K80: x | L80: - | M80: - | N80: - | O80: х | P80: - | Q80: х | R80: - | S80: х | T80: х | U80: х | V80: х | W80: х | X80: - | Y80: - | Z80: х | AA80: - | AB80: - | AC80: - | AD80: х | AE80: х | AF80: - | AG80: x | AH80: x | AI80: - | AJ80: x | AK80: x | AL80: x | AM80: - | AN80: x
A81: 68 | B81: 222 " Транспортные услуги" | E81: - | F81: - | G81: x | H81: x | I81: x | J81: - | K81: x | L81: - | M81: - | N81: - | O81: х | P81: - | Q81: х | R81: - | S81: х | T81: х | U81: х | V81: х | W81: х | X81: - | Y81: - | Z81: х | AA81: - | AB81: - | AC81: - | AD81: - | AE81: х | AF81: - | AG81: x | AH81: x | AI81: - | AJ81: x | AK81: x | AL81: x | AM81: - | AN81: x
A82: 69 | B82: Компенсации работникам за использование личного транспорта | C82: П222003 | D82: 222 | E82: - | F82: - | G82: x | H82: x | I82: x | J82: - | K82: x | L82: - | M82: - | N82: - | O82: х | P82: - | Q82: х | R82: - | S82: х | T82: х | U82: х | V82: х | W82: х | X82: - | Y82: - | Z82: х | AA82: - | AB82: - | AC82: - | AD82: - | AE82: х | AF82: - | AG82: x | AH82: x | AI82: - | AJ82: x | AK82: x | AL82: x | AM82: - | AN82: x
A83: 70 | B83: Услуги сторонних организаций для оплаты расходов по проезду при служебных командировках работников (сотрудников) | C83: П222004 | D83: 222 | E83: - | F83: - | G83: x | H83: x | I83: x | J83: - | K83: x | L83: - | M83: - | N83: - | O83: х | P83: - | Q83: х | R83: - | S83: х | T83: х | U83: х | V83: х | W83: х | X83: - | Y83: - | Z83: х | AA83: - | AB83: - | AC83: - | AD83: - | AE83: х | AF83: - | AG83: x | AH83: x | AI83: - | AJ83: x | AK83: x | AL83: x | AM83: - | AN83: x
A84: 71 | B84: Сверхнормативные выплаты на заработную плату внештатных водителей | C84: П222012 | D84: 222 | E84: - | F84: - | G84: x | H84: x | I84: x | J84: - | K84: x | L84: - | M84: - | N84: - | O84: х | P84: - | Q84: х | R84: - | S84: х | T84: х | U84: х | V84: х | W84: х | X84: - | Y84: - | Z84: х | AA84: - | AB84: - | AC84: - | AD84: - | AE84: х | AF84: - | AG84: x | AH84: x | AI84: - | AJ84: x | AK84: x | AL84: x | AM84: - | AN84: x
A85: 72 | B85: Приобретение и пополнение транспортных карт сотрудникам, имеющим разъездной характер работы | C85: П222021 | D85: 222 | E85: - | F85: - | G85: x | H85: x | I85: x | J85: - | K85: x | L85: - | M85: - | N85: - | O85: х | P85: - | Q85: х | R85: - | S85: х | T85: х | U85: х | V85: х | W85: х | X85: - | Y85: - | Z85: х | AA85: - | AB85: - | AC85: - | AD85: - | AE85: х | AF85: - | AG85: x | AH85: x | AI85: - | AJ85: x | AK85: x | AL85: x | AM85: - | AN85: x
A86: 73 | B86: Транспортные услуги по перевозке школьников | C86: П222022 | D86: 222 | E86: - | F86: - | G86: x | H86: x | I86: x | J86: - | K86: x | L86: - | M86: - | N86: - | O86: х | P86: - | Q86: х | R86: - | S86: х | T86: х | U86: х | V86: х | W86: х | X86: - | Y86: - | Z86: х | AA86: - | AB86: - | AC86: - | AD86: - | AE86: х | AF86: - | AG86: x | AH86: x | AI86: - | AJ86: x | AK86: x | AL86: x | AM86: - | AN86: x
A87: 74 | B87: Прочие расходы по транспортным услугам, не включенные в вышеуказанные дополнительные коды экономической классификации | C87: П222099 | D87: 222 | E87: - | F87: - | G87: x | H87: x | I87: x | J87: - | K87: x | L87: - | M87: - | N87: - | O87: х | P87: - | Q87: х | R87: - | S87: х | T87: х | U87: х | V87: х | W87: х | X87: - | Y87: - | Z87: х | AA87: - | AB87: - | AC87: - | AD87: - | AE87: х | AF87: - | AG87: x | AH87: x | AI87: - | AJ87: x | AK87: x | AL87: x | AM87: - | AN87: x
A88: 75 | B88: 224 ""Арендная плата за пользование имуществом" | E88: - | F88: - | G88: x | H88: x | I88: x | J88: - | K88: x | L88: - | M88: - | N88: - | O88: х | P88: - | Q88: х | R88: - | S88: х | T88: х | U88: х | V88: х | W88: х | X88: - | Y88: - | Z88: х | AA88: - | AB88: - | AC88: - | AD88: - | AE88: х | AF88: - | AG88: x | AH88: x | AI88: - | AJ88: x | AK88: x | AL88: x | AM88: - | AN88: x
A89: 76 | B89: Аренда транспорта, оборудования | C89: П224002 | D89: 224 | E89: - | F89: - | G89: x | H89: x | I89: x | J89: - | K89: x | L89: - | M89: - | N89: - | O89: х | P89: - | Q89: х | R89: - | S89: х | T89: х | U89: х | V89: х | W89: х | X89: - | Y89: - | Z89: х | AA89: - | AB89: - | AC89: - | AD89: - | AE89: х | AF89: - | AG89: x | AH89: x | AI89: - | AJ89: x | AK89: x | AL89: x | AM89: - | AN89: x
A90: 77 | B90: Прочие по арендной плате | C90: П224099 | D90: 224 | E90: - | F90: - | G90: x | H90: x | I90: x | J90: - | K90: x | L90: - | M90: - | N90: - | O90: х | P90: - | Q90: х | R90: - | S90: х | T90: х | U90: х | V90: х | W90: х | X90: - | Y90: - | Z90: х | AA90: - | AB90: - | AC90: - | AD90: - | AE90: х | AF90: - | AG90: x | AH90: x | AI90: - | AJ90: x | AK90: x | AL90: x | AM90: - | AN90: x
A91: 78 | B91: 225 "Работы, услуги по содержанию имущества" | E91: 362,652.06 | F91: 360,526.48 | G91: x | H91: x | I91: x | J91: 360,526.48 | K91: x | L91: - | M91: 406,499.27 | N91: 406,499.27 | O91: х | P91: 406,499.27 | Q91: х | R91: - | S91: х | T91: х | U91: х | V91: х | W91: х | X91: - | Y91: - | Z91: х | AA91: - | AB91: 406,499.27 | AC91: 406,499.27 | AD91: - | AE91: х | AF91: - | AG91: x | AH91: x | AI91: - | AJ91: x | AK91: x | AL91: x | AM91: 362,652.06 | AN91: x
A92: 79 | B92: Содержание в чистоте помещений, зданий, дворов, иного недвижимого имущества | C92: П225002 | D92: 225 | E92: 65,419.60 | F92: 65,419.60 | G92: x | H92: x | I92: x | J92: 65,419.60 | K92: x | L92: - | M92: 44,433.20 | N92: 44,433.20 | O92: х | P92: 44,433.20 | Q92: х | R92: - | S92: х | T92: х | U92: х | V92: х | W92: х | X92: - | Y92: - | Z92: х | AA92: - | AB92: 44,433.20 | AC92: 44,433.20 | AD92: - | AE92: х | AF92: - | AG92: x | AH92: x | AI92: - | AJ92: x | AK92: x | AL92: x | AM92: 65,419.60 | AN92: x
A93: 80 | B93: Проведение работ по ремонту и восстановлению эффективности функционирования коммунальных инженерных систем и коммуникаций, осуществляемых сверх регламентированного условиями поставки коммунальных услуг перечня работ (технологических нужд) (в части технического обслуживания и аварийного ремонта инженерных коммуникаций - систем водоснабжения, отопления, уличного освещения и пр.) | C93: П225003 | D93: 225 | E93: 70,914.00 | F93: 70,914.00 | G93: x | H93: x | I93: x | J93: 70,914.00 | K93: x | L93: - | M93: 71,797.93 | N93: 71,797.93 | O93: х | P93: 71,797.93 | Q93: х | R93: - | S93: х | T93: х | U93: х | V93: х | W93: х | X93: - | Y93: - | Z93: х | AA93: - | AB93: 71,797.93 | AC93: 71,797.93 | AD93: - | AE93: х | AF93: - | AG93: x | AH93: x | AI93: - | AJ93: x | AK93: x | AL93: x | AM93: 70,914.00 | AN93: x
A94: 81 | B94: Обеспечение функционирования и поддержка (восстановление) работоспособности объектов нефинансовых активов | C94: П225004 | D94: 225 | E94: - | F94: - | G94: x | H94: x | I94: x | J94: - | K94: x | L94: - | M94: - | N94: - | O94: х | P94: - | Q94: х | R94: - | S94: х | T94: х | U94: х | V94: х | W94: х | X94: - | Y94: - | Z94: х | AA94: - | AB94: - | AC94: - | AD94: - | AE94: х | AF94: - | AG94: x | AH94: x | AI94: - | AJ94: x | AK94: x | AL94: x | AM94: - | AN94: x
A95: 82 | B95: Зарплата внештатных сотрудников | C95: П225005 | D95: 225 | E95: - | F95: - | G95: x | H95: x | I95: x | J95: - | K95: x | L95: - | M95: - | N95: - | O95: х | P95: - | Q95: х | R95: - | S95: х | T95: х | U95: х | V95: х | W95: х | X95: - | Y95: - | Z95: х | AA95: - | AB95: - | AC95: - | AD95: - | AE95: х | AF95: - | AG95: x | AH95: x | AI95: - | AJ95: x | AK95: x | AL95: x | AM95: - | AN95: x
A96: 83 | B96: Текущий ремонт зданий, сооружений, коммунальных инженерных систем и коммуникаций | C96: Н225007 | D96: 225 | E96: 93,785.40 | F96: 93,785.40 | G96: x | H96: x | I96: x | J96: 93,785.40 | K96: x | L96: - | M96: 93,785.40 | N96: 93,785.40 | O96: х | P96: 93,785.40 | Q96: х | R96: - | S96: х | T96: х | U96: х | V96: х | W96: х | X96: - | Y96: - | Z96: х | AA96: - | AB96: 93,785.40 | AC96: 93,785.40 | AD96: - | AE96: х | AF96: - | AG96: x | AH96: x | AI96: - | AJ96: x | AK96: x | AL96: x | AM96: 93,785.40 | AN96: x
A97: 84 | B97: Техническое обслуживание и ремонт аппаратного обеспечения (оргтехника, медицинское оборудование, компьютерная техника и.т.д.), включающее контроль технического состояния | C97: П225010 | D97: 225 | E97: - | F97: - | G97: x | H97: x | I97: x | J97: - | K97: x | L97: - | M97: 37,089.61 | N97: 37,089.61 | O97: х | P97: 37,089.61 | Q97: х | R97: - | S97: х | T97: х | U97: х | V97: х | W97: х | X97: - | Y97: - | Z97: х | AA97: - | AB97: 37,089.61 | AC97: 37,089.61 | AD97: - | AE97: х | AF97: - | AG97: x | AH97: x | AI97: - | AJ97: x | AK97: x | AL97: x | AM97: - | AN97: x
A98: 85 | B98: Техническое обслуживание транспортных средств | C98: П225011 | D98: 225 | E98: - | F98: - | G98: x | H98: x | I98: x | J98: - | K98: x | L98: - | M98: - | N98: - | O98: х | P98: - | Q98: х | R98: - | S98: х | T98: х | U98: х | V98: х | W98: х | X98: - | Y98: - | Z98: х | AA98: - | AB98: - | AC98: - | AD98: - | AE98: х | AF98: - | AG98: x | AH98: x | AI98: - | AJ98: x | AK98: x | AL98: x | AM98: - | AN98: x
A99: 86 | B99: Ремонт транспортных средств | C99: П225012 | D99: 225 | E99: - | F99: - | G99: x | H99: x | I99: x | J99: - | K99: x | L99: - | M99: - | N99: - | O99: х | P99: - | Q99: х | R99: - | S99: х | T99: х | U99: х | V99: х | W99: х | X99: - | Y99: - | Z99: х | AA99: - | AB99: - | AC99: - | AD99: - | AE99: х | AF99: - | AG99: x | AH99: x | AI99: - | AJ99: x | AK99: x | AL99: x | AM99: - | AN99: x
A100: 87 | B100: Технический осмотр транспортных средств | C100: П225013 | D100: 225 | E100: - | F100: - | G100: x | H100: x | I100: x | J100: - | K100: x | L100: - | M100: - | N100: - | O100: х | P100: - | Q100: х | R100: - | S100: х | T100: х | U100: х | V100: х | W100: х | X100: - | Y100: - | Z100: х | AA100: - | AB100: - | AC100: - | AD100: - | AE100: х | AF100: - | AG100: x | AH100: x | AI100: - | AJ100: x | AK100: x | AL100: x | AM100: - | AN100: x
A101: 88 | B101: Содержание транспортных средств (мойка и т.д.) | C101: П225014 | D101: 225 | E101: - | F101: - | G101: x | H101: x | I101: x | J101: - | K101: x | L101: - | M101: - | N101: - | O101: х | P101: - | Q101: х | R101: - | S101: х | T101: х | U101: х | V101: х | W101: х | X101: - | Y101: - | Z101: х | AA101: - | AB101: - | AC101: - | AD101: - | AE101: х | AF101: - | AG101: x | AH101: x | AI101: - | AJ101: x | AK101: x | AL101: x | AM101: - | AN101: x
A102: 89 | B102: Расходы на техническое обслуживание и ремонт оборудования (торговое, кухонное, офисное, лифты и т.п.), мебели, бытовой техники, инвентаря (торгового, кухонного, офисного и т.п.) | C102: П225015 | D102: 225 | E102: 100,984.58 | F102: 96,494.04 | G102: x | H102: x | I102: x | J102: 96,494.04 | K102: x | L102: - | M102: 127,844.65 | N102: 127,844.65 | O102: х | P102: 127,844.65 | Q102: х | R102: - | S102: х | T102: х | U102: х | V102: х | W102: х | X102: - | Y102: - | Z102: х | AA102: - | AB102: 127,844.65 | AC102: 127,844.65 | AD102: - | AE102: х | AF102: - | AG102: x | AH102: x | AI102: - | AJ102: x | AK102: x | AL102: x | AM102: 100,984.58 | AN102: x
A103: 90 | B103: Содержание в чистоте имущества, кроме недвижимого | C103: П225016 | D103: 225 | E103: - | F103: - | G103: x | H103: x | I103: x | J103: - | K103: x | L103: - | M103: - | N103: - | O103: х | P103: - | Q103: х | R103: - | S103: х | T103: х | U103: х | V103: х | W103: х | X103: - | Y103: - | Z103: х | AA103: - | AB103: - | AC103: - | AD103: - | AE103: х | AF103: - | AG103: x | AH103: x | AI103: - | AJ103: x | AK103: x | AL103: x | AM103: - | AN103: x
A104: 91 | B104: Техническое обслуживание приборов учета | C104: П225035 | D104: 225 | E104: 31,548.48 | F104: 31,548.48 | G104: x | H104: x | I104: x | J104: 31,548.48 | K104: x | L104: - | M104: 31,548.48 | N104: 31,548.48 | O104: х | P104: 31,548.48 | Q104: х | R104: - | S104: х | T104: х | U104: х | V104: х | W104: х | X104: - | Y104: - | Z104: х | AA104: - | AB104: 31,548.48 | AC104: 31,548.48 | AD104: - | AE104: х | AF104: - | AG104: x | AH104: x | AI104: - | AJ104: x | AK104: x | AL104: x | AM104: 31,548.48 | AN104: x
A105: 92 | B105: Противопожарные мероприятия (огнезащитная обработка чердачных покрытий, замеры сопротивления изоляции, зарядка огнетушителей, опрессовка проводов) | C105: П225036 | D105: 225 | E105: - | F105: - | G105: x | H105: x | I105: x | J105: - | K105: x | L105: - | M105: - | N105: - | O105: х | P105: - | Q105: х | R105: - | S105: х | T105: х | U105: х | V105: х | W105: х | X105: - | Y105: - | Z105: х | AA105: - | AB105: - | AC105: - | AD105: - | AE105: х | AF105: - | AG105: x | AH105: x | AI105: - | AJ105: x | AK105: x | AL105: x | AM105: - | AN105: x
A106: 93 | B106: Расходы по валке и обрезке зеленых насаждений в муниципальных учреждениях образования | C106: П225040 | D106: 225 | E106: - | F106: - | G106: x | H106: x | I106: x | J106: - | K106: x | L106: - | M106: - | N106: - | O106: х | P106: - | Q106: х | R106: - | S106: х | T106: х | U106: х | V106: х | W106: х | X106: - | Y106: - | Z106: х | AA106: - | AB106: - | AC106: - | AD106: - | AE106: х | AF106: - | AG106: x | AH106: x | AI106: - | AJ106: x | AK106: x | AL106: x | AM106: - | AN106: x
A107: 94 | B107: Вывоз мусора (ТБО, ТКО) для учреждений СКС | C107: П225050 | D107: 225 | E107: - | F107: - | G107: x | H107: x | I107: x | J107: - | K107: x | L107: - | M107: - | N107: - | O107: х | P107: - | Q107: х | R107: - | S107: х | T107: х | U107: х | V107: х | W107: х | X107: - | Y107: - | Z107: х | AA107: - | AB107: - | AC107: - | AD107: - | AE107: х | AF107: - | AG107: x | AH107: x | AI107: - | AJ107: x | AK107: x | AL107: x | AM107: - | AN107: x
A108: 95 | B108: Прочие первоочередные расходы по работам, услугам по содержанию имущества | C108: П225098 | D108: 225 | E108: - | F108: 2,364.96 | G108: x | H108: x | I108: x | J108: 2,364.96 | K108: x | L108: - | M108: - | N108: - | O108: х | P108: - | Q108: х | R108: - | S108: - | T108: - | U108: - | V108: - | W108: - | X108: - | Y108: - | Z108: х | AA108: - | AB108: - | AC108: - | AD108: - | AE108: х | AF108: - | AG108: x | AH108: x | AI108: - | AJ108: x | AK108: x | AL108: x | AM108: - | AN108: x
A109: 96 | B109: Прочие работы, услуги по содержанию имущества, не включенные в вышеуказанные дополнительные коды экономической классификации | C109: Н225099 | D109: 225 | E109: - | F109: - | G109: x | H109: x | I109: x | J109: - | K109: x | L109: - | M109: - | N109: - | O109: х | P109: - | Q109: х | R109: - | S109: х | T109: х | U109: х | V109: х | W109: х | X109: - | Y109: - | Z109: х | AA109: - | AB109: - | AC109: - | AD109: - | AE109: х | AF109: - | AG109: x | AH109: x | AI109: - | AJ109: x | AK109: x | AL109: x | AM109: - | AN109: x
A110: 97 | B110: Кухонные работники | C110: П900200 | D110: 225 | E110: - | F110: - | G110: x | H110: x | I110: x | J110: - | K110: x | L110: - | M110: - | N110: - | O110: х | P110: - | Q110: х | R110: - | S110: х | T110: х | U110: х | V110: х | W110: х | X110: - | Y110: - | Z110: х | AA110: - | AB110: - | AC110: - | AD110: - | AE110: х | AF110: - | AG110: x | AH110: x | AI110: - | AJ110: x | AK110: x | AL110: x | AM110: - | AN110: x
A111: 98 | B111: 226 "Прочие работы, услуги" | E111: 4,783,642.98 | F111: 4,774,880.98 | G111: x | H111: x | I111: x | J111: 4,774,880.98 | K111: - | L111: - | M111: 6,471,898.04 | N111: 6,471,898.04 | O111: х | P111: 3,297,124.83 | Q111: 3,174,773.21 | R111: - | S111: х | T111: х | U111: х | V111: х | W111: х | X111: 5,771,708.04 | Y111: 2,596,934.83 | Z111: 3,174,773.21 | AA111: - | AB111: 43,190.00 | AC111: 43,190.00 | AD111: - | AE111: х | AF111: - | AG111: 657,000.00 | AH111: x | AI111: - | AJ111: x | AK111: x | AL111: x | AM111: 4,783,642.98 | AN111: -
A112: 99 | B112: Подписка | C112: П226001 | D112: 226 | E112: - | F112: - | G112: x | H112: x | I112: x | J112: - | K112: x | L112: - | M112: - | N112: - | O112: х | P112: - | Q112: х | R112: - | S112: х | T112: х | U112: х | V112: х | W112: х | X112: - | Y112: - | Z112: х | AA112: - | AB112: - | AC112: - | AD112: - | AE112: х | AF112: - | AG112: x | AH112: x | AI112: - | AJ112: x | AK112: x | AL112: x | AM112: - | AN112: x
A113: 100 | B113: Зарплата внештатных сотрудников | C113: П226002 | D113: 226 | E113: - | F113: - | G113: x | H113: x | I113: x | J113: - | K113: x | L113: - | M113: - | N113: - | O113: х | P113: - | Q113: х | R113: - | S113: х | T113: х | U113: х | V113: х | W113: х | X113: - | Y113: - | Z113: х | AA113: - | AB113: - | AC113: - | AD113: - | AE113: х | AF113: - | AG113: x | AH113: x | AI113: - | AJ113: x | AK113: x | AL113: x | AM113: - | AN113: x
A114: 101 | B114: Организация питания | C114: П226003 | D114: 226 | E114: 4,730,950.98 | F114: 4,730,950.98 | G114: x | H114: x | I114: x | J114: 4,730,950.98 | K114: x | L114: - | M114: 5,771,708.04 | N114: 5,771,708.04 | O114: х | P114: 2,596,934.83 | Q114: 3,174,773.21 | R114: - | S114: х | T114: х | U114: х | V114: х | W114: х | X114: 5,771,708.04 | Y114: 2,596,934.83 | Z114: 3,174,773.21 | AA114: - | AB114: - | AC114: - | AD114: - | AE114: х | AF114: - | AG114: x | AH114: x | AI114: - | AJ114: x | AK114: x | AL114: x | AM114: 4,730,950.98 | AN114: x
A115: 102 | B115: Услуги вневедомственной (в том числе пожарной) охраны | C115: П226004 | D115: 226 | E115: - | F115: - | G115: x | H115: x | I115: x | J115: - | K115: - | L115: - | M115: - | N115: - | O115: х | P115: - | Q115: х | R115: - | S115: х | T115: х | U115: х | V115: х | W115: х | X115: - | Y115: - | Z115: х | AA115: - | AB115: - | AC115: - | AD115: - | AE115: х | AF115: - | AG115: x | AH115: x | AI115: - | AJ115: x | AK115: x | AL115: x | AM115: - | AN115: -
A116: 103 | B116: Приобретение неисключительных (пользовательских) прав на программное обеспечение (отраслевых, бухгалтерских программ) | C116: П226010 | D116: 226 | E116: - | F116: - | G116: x | H116: x | I116: x | J116: - | K116: x | L116: - | M116: - | N116: - | O116: х | P116: - | Q116: х | R116: - | S116: х | T116: х | U116: х | V116: х | W116: х | X116: - | Y116: - | Z116: х | AA116: - | AB116: - | AC116: - | AD116: - | AE116: х | AF116: - | AG116: x | AH116: x | AI116: - | AJ116: x | AK116: x | AL116: x | AM116: - | AN116: x
A117: 104 | B117: Приобретение и обновление справочно-информ. баз данных (Гарант, Консультант и др.) | C117: П226013 | D117: 226 | E117: - | F117: - | G117: x | H117: x | I117: x | J117: - | K117: x | L117: - | M117: - | N117: - | O117: х | P117: - | Q117: х | R117: - | S117: х | T117: х | U117: х | V117: х | W117: х | X117: - | Y117: - | Z117: х | AA117: - | AB117: - | AC117: - | AD117: - | AE117: х | AF117: - | AG117: x | AH117: x | AI117: - | AJ117: x | AK117: x | AL117: x | AM117: - | AN117: x
A118: 105 | B118: Расходы в области информационно-коммуникационных технологий, в части услуг по защите электронного документооборота (поддержке программного продукта) с использованием сертификационных средств криптографической защиты информации; обучение сотрудников в области информационно-коммуникационных технологий; обеспечение безопасности информации и режимно-секретных мероприятий, периодическая проверка объекта информатизации на ПЭВМ на соответствие специальным требованиям по защите информации, составляющей государственную тайну, от утечки по техническим каналам, аттестация компьютеров с целью защиты информации от несанкционированного доступа, диагностика компьютеров | C118: П226015 | D118: 226 | E118: - | F118: 2,690.00 | G118: x | H118: x | I118: x | J118: 2,690.00 | K118: x | L118: - | M118: 2,690.00 | N118: 2,690.00 | O118: х | P118: 2,690.00 | Q118: х | R118: - | S118: - | T118: - | U118: - | V118: - | W118: - | X118: - | Y118: - | Z118: х | AA118: - | AB118: 2,690.00 | AC118: 2,690.00 | AD118: - | AE118: х | AF118: - | AG118: x | AH118: x | AI118: - | AJ118: x | AK118: x | AL118: x | AM118: - | AN118: x
A119: 106 | B119: Разработка схем территориального планирования, градостроительных и технологических регламентов, градостроительное зонирование, планировка территорий | C119: Н226019 | D119: 226 | E119: - | F119: - | G119: x | H119: x | I119: x | J119: - | K119: x | L119: - | M119: - | N119: - | O119: х | P119: - | Q119: х | R119: - | S119: - | T119: - | U119: - | V119: - | W119: - | X119: - | Y119: - | Z119: х | AA119: - | AB119: - | AC119: - | AD119: - | AE119: х | AF119: - | AG119: x | AH119: x | AI119: - | AJ119: x | AK119: x | AL119: x | AM119: - | AN119: x
A120: 107 | B120: Типографские работы | C120: Н226022 | D120: 226 | E120: - | F120: - | G120: x | H120: x | I120: x | J120: - | K120: x | L120: - | M120: - | N120: - | O120: х | P120: - | Q120: х | R120: - | S120: х | T120: х | U120: х | V120: х | W120: х | X120: - | Y120: - | Z120: х | AA120: - | AB120: - | AC120: - | AD120: - | AE120: х | AF120: - | AG120: x | AH120: x | AI120: - | AJ120: x | AK120: x | AL120: x | AM120: - | AN120: x
A121: 108 | B121: Размещение объявлений, рекламы в средствах массовой информации, расходы на теле- радиопрограммы, на видеоролики | C121: Н226023 | D121: 226 | E121: - | F121: - | G121: x | H121: x | I121: x | J121: - | K121: x | L121: - | M121: - | N121: - | O121: х | P121: - | Q121: х | R121: - | S121: х | T121: х | U121: х | V121: х | W121: х | X121: - | Y121: - | Z121: х | AA121: - | AB121: - | AC121: - | AD121: - | AE121: х | AF121: - | AG121: x | AH121: x | AI121: - | AJ121: x | AK121: x | AL121: x | AM121: - | AN121: x
A122: 109 | B122: Возмещение расходов и оплата по договорам гражданско-правового характера услуг по проживанию в жилых помещениях(найм жилого помещения) при служебных командировках | C122: П226024 | D122: 226 | E122: - | F122: - | G122: x | H122: x | I122: x | J122: - | K122: x | L122: - | M122: - | N122: - | O122: х | P122: - | Q122: х | R122: - | S122: х | T122: х | U122: х | V122: х | W122: х | X122: - | Y122: - | Z122: х | AA122: - | AB122: - | AC122: - | AD122: - | AE122: х | AF122: - | AG122: x | AH122: x | AI122: - | AJ122: x | AK122: x | AL122: x | AM122: - | AN122: x
A123: 110 | B123: Услуги адвокатов, нотариусов, переводчиков, экспертов, инкассаторов | C123: П226025 | D123: 226 | E123: - | F123: - | G123: x | H123: x | I123: x | J123: - | K123: x | L123: - | M123: - | N123: - | O123: х | P123: - | Q123: х | R123: - | S123: х | T123: х | U123: х | V123: х | W123: х | X123: - | Y123: - | Z123: х | AA123: - | AB123: - | AC123: - | AD123: - | AE123: х | AF123: - | AG123: x | AH123: x | AI123: - | AJ123: x | AK123: x | AL123: x | AM123: - | AN123: x
A124: 111 | B124: Проведение инвентаризации, паспортизации основных средств | C124: П226027 | D124: 226 | E124: - | F124: - | G124: x | H124: x | I124: x | J124: - | K124: x | L124: - | M124: - | N124: - | O124: х | P124: - | Q124: х | R124: - | S124: х | T124: х | U124: х | V124: х | W124: х | X124: - | Y124: - | Z124: х | AA124: - | AB124: - | AC124: - | AD124: - | AE124: х | AF124: - | AG124: x | AH124: x | AI124: - | AJ124: x | AK124: x | AL124: x | AM124: - | AN124: x
A125: 112 | B125: Оплата медицинских осмотров | C125: П226031 | D125: 226 | E125: - | F125: - | G125: x | H125: x | I125: x | J125: - | K125: x | L125: - | M125: - | N125: - | O125: х | P125: - | Q125: х | R125: - | S125: х | T125: х | U125: х | V125: х | W125: х | X125: - | Y125: - | Z125: х | AA125: - | AB125: - | AC125: - | AD125: - | AE125: х | AF125: - | AG125: x | AH125: x | AI125: - | AJ125: x | AK125: x | AL125: x | AM125: - | AN125: x
A126: 113 | B126: Возмещение работникам (сотрудникам) расходов по проезду при служебных командировках | C126: П226042 | D126: 226 | E126: - | F126: - | G126: x | H126: x | I126: x | J126: - | K126: x | L126: - | M126: - | N126: - | O126: х | P126: - | Q126: х | R126: - | S126: х | T126: х | U126: х | V126: х | W126: х | X126: - | Y126: - | Z126: х | AA126: - | AB126: - | AC126: - | AD126: - | AE126: х | AF126: - | AG126: x | AH126: x | AI126: - | AJ126: x | AK126: x | AL126: x | AM126: - | AN126: x
A127: 114 | B127: Услуги охраны образовательных организаций частными охранными предприятиями | C127: П226050 | D127: 226 | E127: - | F127: - | G127: x | H127: x | I127: x | J127: - | K127: - | L127: - | M127: 657,000.00 | N127: 657,000.00 | O127: х | P127: 657,000.00 | Q127: х | R127: - | S127: х | T127: х | U127: х | V127: х | W127: х | X127: - | Y127: - | Z127: х | AA127: - | AB127: - | AC127: - | AD127: - | AE127: х | AF127: - | AG127: 657,000.00 | AH127: x | AI127: - | AJ127: x | AK127: x | AL127: x | AM127: - | AN127: -
A128: 115 | B128: За участие в семинарах, совещаниях, конференциях, курсах повышения квалификации, проф.обучение, за образовательные услуги, организация и проведение совещаний, конкурсов, олимпиад, выставок, мероприятий, конференций, соревнований, экскурсий | C128: П226052 | D128: 226 | E128: 14,450.00 | F128: 14,450.00 | G128: x | H128: x | I128: x | J128: 14,450.00 | K128: x | L128: - | M128: 20,500.00 | N128: 20,500.00 | O128: х | P128: 20,500.00 | Q128: х | R128: - | S128: х | T128: х | U128: х | V128: х | W128: х | X128: - | Y128: - | Z128: х | AA128: - | AB128: 20,500.00 | AC128: 20,500.00 | AD128: - | AE128: х | AF128: - | AG128: x | AH128: x | AI128: - | AJ128: x | AK128: x | AL128: x | AM128: 14,450.00 | AN128: x
A129: 116 | B129: Прочие первоочередные расходы по прочим работам, услугам | C129: П226098 | D129: 226 | E129: - | F129: 26,790.00 | G129: x | H129: x | I129: x | J129: 26,790.00 | K129: x | L129: - | M129: 20,000.00 | N129: 20,000.00 | O129: х | P129: 20,000.00 | Q129: х | R129: - | S129: х | T129: х | U129: х | V129: х | W129: х | X129: - | Y129: - | Z129: х | AA129: - | AB129: 20,000.00 | AC129: 20,000.00 | AD129: - | AE129: х | AF129: - | AG129: x | AH129: x | AI129: - | AJ129: x | AK129: x | AL129: x | AM129: - | AN129: x
A130: 117 | B130: Прочие работы по прочим работам, услугам, не вклюсенные в вышеуказанные дополнительные коды экономической классификации | C130: Н226099 | D130: 226 | E130: 38,242.00 | F130: - | G130: x | H130: x | I130: x | J130: - | K130: x | L130: - | M130: - | N130: - | O130: х | P130: - | Q130: х | R130: - | S130: х | T130: х | U130: х | V130: х | W130: х | X130: - | Y130: - | Z130: х | AA130: - | AB130: - | AC130: - | AD130: - | AE130: х | AF130: - | AG130: x | AH130: x | AI130: - | AJ130: x | AK130: x | AL130: x | AM130: 38,242.00 | AN130: x
A131: 118 | B131: Прочие работы, услуги | C131: П900200 | D131: 226 | E131: - | F131: - | G131: x | H131: x | I131: x | J131: - | K131: x | L131: - | M131: - | N131: - | O131: х | P131: - | Q131: х | R131: - | S131: х | T131: х | U131: х | V131: х | W131: х | X131: - | Y131: - | Z131: х | AA131: - | AB131: - | AC131: - | AD131: x | AE131: х | AF131: - | AG131: x | AH131: x | AI131: - | AJ131: x | AK131: x | AL131: x | AM131: - | AN131: x
A132: 119 | B132: 227 "Страхование" | E132: - | F132: - | G132: x | H132: x | I132: x | J132: - | K132: x | L132: - | M132: - | N132: - | O132: х | P132: - | Q132: х | R132: - | S132: х | T132: х | U132: х | V132: х | W132: х | X132: - | Y132: - | Z132: х | AA132: - | AB132: - | AC132: - | AD132: - | AE132: х | AF132: - | AG132: x | AH132: x | AI132: - | AJ132: x | AK132: x | AL132: x | AM132: - | AN132: x
A133: 120 | B133: Услуги по страхованию (за исключением ОСАГО, КАСКО) | C133: П227001 | D133: 227 | E133: - | F133: - | G133: x | H133: x | I133: x | J133: - | K133: x | L133: - | M133: - | N133: - | O133: х | P133: - | Q133: х | R133: - | S133: х | T133: х | U133: х | V133: х | W133: х | X133: - | Y133: - | Z133: х | AA133: - | AB133: - | AC133: - | AD133: - | AE133: х | AF133: - | AG133: x | AH133: x | AI133: - | AJ133: x | AK133: x | AL133: x | AM133: - | AN133: x
A134: 121 | B134: Услуги по страхованию транспортных средств (ОСАГО, КАСКО) | C134: П227002 | D134: 227 | E134: - | F134: - | G134: x | H134: x | I134: x | J134: - | K134: x | L134: - | M134: - | N134: - | O134: х | P134: - | Q134: х | R134: - | S134: х | T134: х | U134: х | V134: х | W134: х | X134: - | Y134: - | Z134: х | AA134: - | AB134: - | AC134: - | AD134: - | AE134: х | AF134: - | AG134: x | AH134: x | AI134: - | AJ134: x | AK134: x | AL134: x | AM134: - | AN134: x
A135: 122 | B135: 229 «Арендная плата за пользование земельными участками и другими обособленными природными объектами» | E135: - | F135: - | G135: x | H135: x | I135: x | J135: - | K135: x | L135: - | M135: - | N135: - | O135: х | P135: - | Q135: х | R135: - | S135: х | T135: х | U135: х | V135: х | W135: х | X135: - | Y135: - | Z135: х | AA135: - | AB135: - | AC135: - | AD135: - | AE135: х | AF135: - | AG135: x | AH135: x | AI135: - | AJ135: x | AK135: x | AL135: x | AM135: - | AN135: x
A136: 123 | B136: Расходы по арендной плате за пользование земельными участками и другими обособленными природными объектами | C136: П229099 | E136: - | F136: - | G136: x | H136: x | I136: x | J136: - | K136: x | L136: - | M136: - | N136: - | O136: х | P136: - | Q136: х | R136: - | S136: х | T136: х | U136: х | V136: х | W136: х | X136: - | Y136: - | Z136: х | AA136: - | AB136: - | AC136: - | AD136: - | AE136: х | AF136: - | AG136: x | AH136: x | AI136: - | AJ136: x | AK136: x | AL136: x | AM136: - | AN136: x
A137: 124 | B137: 265 "Пособия по социальной помощи, выплачиваемые работодателями, нанимателями бывшим работникам в натуральной форме" | E137: - | F137: - | G137: x | H137: x | I137: x | J137: - | K137: x | L137: - | M137: - | N137: - | O137: х | P137: - | Q137: х | R137: - | S137: х | T137: х | U137: х | V137: х | W137: х | X137: - | Y137: - | Z137: х | AA137: - | AB137: - | AC137: - | AD137: - | AE137: х | AF137: - | AG137: x | AH137: x | AI137: - | AJ137: x | AK137: x | AL137: x | AM137: - | AN137: x
A138: 125 | B138: Прочие расходы по социальной помощи, выплачиваемые работодателями, нанимателями бывшим работникам в натуральной форме | C138: П265099 | D138: 265 | E138: - | F138: - | G138: x | H138: x | I138: x | J138: - | K138: x | L138: - | M138: - | N138: - | O138: х | P138: - | Q138: х | R138: - | S138: х | T138: х | U138: х | V138: х | W138: х | X138: - | Y138: - | Z138: х | AA138: - | AB138: - | AC138: - | AD138: - | AE138: х | AF138: - | AG138: x | AH138: x | AI138: - | AJ138: x | AK138: x | AL138: x | AM138: - | AN138: x
A139: 126 | B139: 266 «Социальные пособия и компенсации персоналу в денежной форме» | E139: - | F139: 3,443.33 | G139: x | H139: x | I139: x | J139: 3,443.33 | K139: x | L139: - | M139: - | N139: - | O139: х | P139: - | Q139: х | R139: - | S139: х | T139: х | U139: х | V139: х | W139: х | X139: - | Y139: - | Z139: х | AA139: - | AB139: - | AC139: - | AD139: - | AE139: - | AF139: х | AG139: x | AH139: x | AI139: - | AJ139: x | AK139: x | AL139: x | AM139: - | AN139: x
A140: 127 | B140: Расходы по социальным пособиям и компенсациям персоналу в денежной форме | C140: П266099 | D140: 266 | E140: - | F140: 3,443.33 | G140: x | H140: x | I140: x | J140: 3,443.33 | K140: x | L140: - | M140: - | N140: - | O140: х | P140: - | Q140: х | R140: - | S140: х | T140: х | U140: х | V140: х | W140: х | X140: - | Y140: - | Z140: х | AA140: - | AB140: - | AC140: - | AD140: - | AE140: - | AF140: х | AG140: x | AH140: x | AI140: - | AJ140: x | AK140: x | AL140: x | AM140: - | AN140: x
A141: 128 | B141: 292 "Штафы за нарушение законодательства о налогах и сборах" | E141: - | F141: - | G141: x | H141: x | I141: x | J141: - | K141: x | L141: - | M141: - | N141: - | O141: х | P141: - | Q141: х | R141: - | S141: х | T141: х | U141: х | V141: х | W141: х | X141: - | Y141: - | Z141: х | AA141: - | AB141: - | AC141: - | AD141: - | AE141: х | AF141: - | AG141: x | AH141: x | AI141: - | AJ141: x | AK141: x | AL141: x | AM141: - | AN141: x
A142: 129 | B142: Штрафы, пени и другие экономические санкции | C142: П292003 | D142: 292 | E142: - | F142: - | G142: x | H142: x | I142: x | J142: - | K142: x | L142: - | M142: - | N142: - | O142: х | P142: - | Q142: х | R142: - | S142: х | T142: х | U142: х | V142: х | W142: х | X142: - | Y142: - | Z142: х | AA142: - | AB142: - | AC142: - | AD142: - | AE142: х | AF142: - | AG142: x | AH142: x | AI142: - | AJ142: x | AK142: x | AL142: x | AM142: - | AN142: x
A143: 130 | B143: 295 Другие экономические санкции" | E143: - | F143: - | G143: x | H143: x | I143: x | J143: - | K143: x | L143: - | M143: - | N143: - | O143: х | P143: - | Q143: х | R143: - | S143: х | T143: х | U143: х | V143: х | W143: х | X143: - | Y143: - | Z143: х | AA143: - | AB143: - | AC143: - | AD143: - | AE143: х | AF143: - | AG143: x | AH143: x | AI143: - | AJ143: x | AK143: x | AL143: x | AM143: - | AN143: x
A144: 131 | B144: Штрафы, пени и другие экономические санкции | C144: П295003 | D144: 295 | E144: - | F144: - | G144: x | H144: x | I144: x | J144: - | K144: x | L144: - | M144: - | N144: - | O144: х | P144: - | Q144: х | R144: - | S144: х | T144: х | U144: х | V144: х | W144: х | X144: - | Y144: - | Z144: х | AA144: - | AB144: - | AC144: - | AD144: - | AE144: х | AF144: - | AG144: x | AH144: x | AI144: - | AJ144: x | AK144: x | AL144: x | AM144: - | AN144: x
A145: 132 | B145: 310 "Увеличение стоимости основных средств" | E145: 199,854.50 | F145: 233,816.50 | G145: x | H145: x | I145: x | J145: 233,816.50 | K145: x | L145: - | M145: 173,179.91 | N145: 173,179.91 | O145: х | P145: 173,179.91 | Q145: х | R145: - | S145: х | T145: х | U145: х | V145: х | W145: х | X145: - | Y145: - | Z145: х | AA145: - | AB145: 173,179.91 | AC145: 173,179.91 | AD145: - | AE145: х | AF145: - | AG145: x | AH145: x | AI145: - | AJ145: x | AK145: x | AL145: x | AM145: 199,854.50 | AN145: x
A146: 133 | B146: Приобретение огнетушителей | C146: П310001 | D146: 310 | E146: - | F146: - | G146: x | H146: x | I146: x | J146: - | K146: x | L146: - | M146: - | N146: - | O146: х | P146: - | Q146: х | R146: - | S146: х | T146: х | U146: х | V146: х | W146: х | X146: - | Y146: - | Z146: х | AA146: - | AB146: - | AC146: - | AD146: - | AE146: х | AF146: - | AG146: x | AH146: x | AI146: - | AJ146: x | AK146: x | AL146: x | AM146: - | AN146: x
A147: 134 | B147: Приобретение автоматизированных рабочих мест,транспортно-коммуникационного оборудования, серверного, периферийного и т.п. оборудования | C147: Н310004 | D147: 310 | E147: 59,956.35 | F147: - | G147: x | H147: x | I147: x | J147: - | K147: x | L147: - | M147: 93,179.91 | N147: 93,179.91 | O147: х | P147: 93,179.91 | Q147: х | R147: - | S147: х | T147: х | U147: х | V147: х | W147: х | X147: - | Y147: - | Z147: х | AA147: - | AB147: 93,179.91 | AC147: 93,179.91 | AD147: - | AE147: х | AF147: - | AG147: x | AH147: x | AI147: - | AJ147: x | AK147: x | AL147: x | AM147: 59,956.35 | AN147: x
A148: 135 | B148: Прочие первоочередные расходы по увеличению стоимости основных средств | C148: П310098 | E148: - | F148: - | G148: x | H148: x | I148: x | J148: - | K148: x | L148: - | M148: - | N148: - | O148: х | P148: - | Q148: х | R148: - | S148: х | T148: х | U148: х | V148: х | W148: х | X148: - | Y148: - | Z148: х | AA148: - | AB148: - | AC148: - | AD148: - | AE148: х | AF148: - | AG148: x | AH148: x | AI148: - | AJ148: x | AK148: x | AL148: x | AM148: - | AN148: x
A149: 136 | B149: Прочие расходы по увеличению стоимости основных средств, не включенные в вышеуказанные дополнительные коды экономической классификации | C149: Н310099 | D149: 310 | E149: 139,898.15 | F149: 233,816.50 | G149: x | H149: x | I149: x | J149: 233,816.50 | K149: x | L149: - | M149: 80,000.00 | N149: 80,000.00 | O149: х | P149: 80,000.00 | Q149: х | R149: - | S149: х | T149: х | U149: х | V149: х | W149: х | X149: - | Y149: - | Z149: х | AA149: - | AB149: 80,000.00 | AC149: 80,000.00 | AD149: - | AE149: х | AF149: - | AG149: x | AH149: x | AI149: - | AJ149: x | AK149: x | AL149: x | AM149: 139,898.15 | AN149: x
A150: 137 | B150: 341 "Увеличение стоимости лекарственных препаратов и материалов, применяемых в медицинских целях" | E150: 14,435.91 | F150: 14,435.91 | G150: x | H150: x | I150: x | J150: 14,435.91 | K150: x | L150: - | M150: 13,973.34 | N150: 13,973.34 | O150: х | P150: 13,973.34 | Q150: х | R150: - | S150: х | T150: х | U150: х | V150: х | W150: х | X150: - | Y150: - | Z150: х | AA150: - | AB150: 13,973.34 | AC150: 13,973.34 | AD150: - | AE150: х | AF150: - | AG150: x | AH150: x | AI150: - | AJ150: x | AK150: x | AL150: x | AM150: 14,435.91 | AN150: x
A151: 138 | B151: Закупка медикаментов, перевязочных средств (расходных материалов); для медицинских организаций закупка медикаментов, перевязочных средств (расходных материалов) через ГУП «Таттехмедфарм» | C151: П341006 | D151: 341 | E151: 14,435.91 | F151: 14,435.91 | G151: x | H151: x | I151: x | J151: 14,435.91 | K151: x | L151: - | M151: 13,973.34 | N151: 13,973.34 | O151: х | P151: 13,973.34 | Q151: х | R151: - | S151: х | T151: х | U151: х | V151: х | W151: х | X151: - | Y151: - | Z151: х | AA151: - | AB151: 13,973.34 | AC151: 13,973.34 | AD151: - | AE151: х | AF151: - | AG151: x | AH151: x | AI151: - | AJ151: x | AK151: x | AL151: x | AM151: 14,435.91 | AN151: x
A152: 139 | B152: 342 "Увеличение стоимости продуктов питания" | E152: - | F152: - | G152: x | H152: x | I152: x | J152: - | K152: x | L152: - | M152: - | N152: - | O152: х | P152: - | Q152: - | R152: - | S152: х | T152: х | U152: х | V152: х | W152: х | X152: - | Y152: - | Z152: - | AA152: - | AB152: х | AC152: х | AD152: х | AE152: х | AF152: - | AG152: x | AH152: x | AI152: - | AJ152: x | AK152: x | AL152: x | AM152: - | AN152: x
A153: 140 | B153: Продукты питания (за исключением молока и молочных продуктов) | C153: П342005 | D153: 342 | E153: - | F153: - | G153: x | H153: x | I153: x | J153: - | K153: x | L153: - | M153: - | N153: - | O153: х | P153: - | Q153: - | R153: - | S153: х | T153: х | U153: х | V153: х | W153: х | X153: - | Y153: - | Z153: - | AA153: - | AB153: х | AC153: х | AD153: х | AE153: х | AF153: - | AG153: x | AH153: x | AI153: - | AJ153: x | AK153: x | AL153: x | AM153: - | AN153: x
A154: 141 | B154: Закупка молока и молочных продуктов | C154: П342018 | D154: 342 | E154: - | F154: - | G154: x | H154: x | I154: x | J154: - | K154: x | L154: - | M154: - | N154: - | O154: х | P154: - | Q154: - | R154: - | S154: х | T154: х | U154: х | V154: х | W154: х | X154: - | Y154: - | Z154: - | AA154: - | AB154: х | AC154: х | AD154: х | AE154: х | AF154: - | AG154: x | AH154: x | AI154: - | AJ154: x | AK154: x | AL154: x | AM154: - | AN154: x
A155: 142 | B155: 343 "Увеличение стоимости горюче-смазочных материалов" | E155: - | F155: - | G155: x | H155: x | I155: x | J155: - | K155: x | L155: - | M155: - | N155: - | O155: х | P155: - | Q155: х | R155: - | S155: х | T155: х | U155: х | V155: х | W155: х | X155: - | Y155: - | Z155: х | AA155: - | AB155: - | AC155: - | AD155: - | AE155: х | AF155: - | AG155: x | AH155: x | AI155: - | AJ155: x | AK155: x | AL155: x | AM155: - | AN155: x
A156: 143 | B156: ГСМ | C156: П343001 | D156: 343 | E156: - | F156: - | G156: x | H156: x | I156: x | J156: - | K156: x | L156: - | M156: - | N156: - | O156: х | P156: - | Q156: х | R156: - | S156: х | T156: х | U156: х | V156: х | W156: х | X156: - | Y156: - | Z156: х | AA156: - | AB156: - | AC156: - | AD156: - | AE156: х | AF156: - | AG156: x | AH156: x | AI156: - | AJ156: x | AK156: x | AL156: x | AM156: - | AN156: x
A157: 144 | B157: ГСМ, связанные с командировочными расходы | C157: П343011 | D157: 343 | E157: - | F157: - | G157: x | H157: x | I157: x | J157: - | K157: x | L157: - | M157: - | N157: - | O157: х | P157: - | Q157: х | R157: - | S157: х | T157: х | U157: х | V157: х | W157: х | X157: - | Y157: - | Z157: х | AA157: - | AB157: - | AC157: - | AD157: - | AE157: х | AF157: - | AG157: x | AH157: x | AI157: - | AJ157: x | AK157: x | AL157: x | AM157: - | AN157: x
A158: 145 | B158: Моторные масла и спец.смазки | C158: П343015 | D158: 343 | E158: - | F158: - | G158: x | H158: x | I158: x | J158: - | K158: x | L158: - | M158: - | N158: - | O158: х | P158: - | Q158: х | R158: - | S158: х | T158: х | U158: х | V158: х | W158: х | X158: - | Y158: - | Z158: х | AA158: - | AB158: - | AC158: - | AD158: - | AE158: х | AF158: - | AG158: x | AH158: x | AI158: - | AJ158: x | AK158: x | AL158: x | AM158: - | AN158: x
A159: 146 | B159: 344 "Увеличение стоимости строительных материалов" | E159: 85,331.28 | F159: 82,966.32 | G159: x | H159: x | I159: x | J159: 82,966.32 | K159: x | L159: - | M159: 92,494.01 | N159: 92,494.01 | O159: х | P159: 92,494.01 | Q159: х | R159: - | S159: х | T159: х | U159: х | V159: х | W159: х | X159: - | Y159: - | Z159: х | AA159: - | AB159: 92,494.01 | AC159: 92,494.01 | AD159: - | AE159: х | AF159: - | AG159: x | AH159: x | AI159: - | AJ159: x | AK159: x | AL159: x | AM159: 85,331.28 | AN159: x
A160: 147 | B160: Первоочередные расходы по увеличению стоимости строительных материалов | C160: П344098 | D160: 344 | E160: - | F160: - | G160: x | H160: x | I160: x | J160: - | K160: x | L160: - | M160: - | N160: - | O160: х | P160: - | Q160: х | R160: - | S160: х | T160: х | U160: х | V160: х | W160: х | X160: - | Y160: - | Z160: х | AA160: - | AB160: - | AC160: - | AD160: - | AE160: х | AF160: - | AG160: x | AH160: x | AI160: - | AJ160: x | AK160: x | AL160: x | AM160: - | AN160: x
A161: 148 | B161: Прочие расходы по увеличению стоимости строительных материалов | C161: Н344099 | D161: 344 | E161: 85,331.28 | F161: 82,966.32 | G161: x | H161: x | I161: x | J161: 82,966.32 | K161: x | L161: - | M161: 92,494.01 | N161: 92,494.01 | O161: х | P161: 92,494.01 | Q161: х | R161: - | S161: х | T161: х | U161: х | V161: х | W161: х | X161: - | Y161: - | Z161: х | AA161: - | AB161: 92,494.01 | AC161: 92,494.01 | AD161: - | AE161: х | AF161: - | AG161: x | AH161: x | AI161: - | AJ161: x | AK161: x | AL161: x | AM161: 85,331.28 | AN161: x
A162: 149 | B162: 345 "Увеличение стоимости мягкого инвентаря" | E162: - | F162: - | G162: x | H162: x | I162: x | J162: - | K162: x | L162: - | M162: - | N162: - | O162: х | P162: - | Q162: х | R162: - | S162: х | T162: х | U162: х | V162: х | W162: х | X162: - | Y162: - | Z162: х | AA162: - | AB162: - | AC162: - | AD162: х | AE162: х | AF162: - | AG162: x | AH162: x | AI162: - | AJ162: x | AK162: x | AL162: x | AM162: - | AN162: x
A163: 150 | B163: Закупка мягкого инвентаря, одежды, обмундирования | C163: П345002 | D163: 345 | E163: - | F163: - | G163: x | H163: x | I163: x | J163: - | K163: x | L163: - | M163: - | N163: - | O163: х | P163: - | Q163: х | R163: - | S163: х | T163: х | U163: х | V163: х | W163: х | X163: - | Y163: - | Z163: х | AA163: - | AB163: - | AC163: - | AD163: х | AE163: х | AF163: - | AG163: x | AH163: x | AI163: - | AJ163: x | AK163: x | AL163: x | AM163: - | AN163: x
A164: 151 | B164: 346 "Увеличение стоимости прочих оборотных запасов (материалов)" | E164: 219,096.44 | F164: 253,371.98 | G164: x | H164: x | I164: x | J164: 253,371.98 | K164: x | L164: - | M164: 278,956.02 | N164: 278,956.02 | O164: х | P164: 278,956.02 | Q164: х | R164: - | S164: х | T164: х | U164: х | V164: х | W164: х | X164: - | Y164: - | Z164: х | AA164: - | AB164: 278,956.02 | AC164: 278,956.02 | AD164: - | AE164: х | AF164: - | AG164: x | AH164: x | AI164: - | AJ164: x | AK164: x | AL164: x | AM164: 219,096.44 | AN164: x
A165: 152 | B165: Закупка запчастей к оборудованию | C165: П346003 | D165: 346 | E165: - | F165: - | G165: x | H165: x | I165: x | J165: - | K165: x | L165: - | M165: - | N165: - | O165: х | P165: - | Q165: х | R165: - | S165: х | T165: х | U165: х | V165: х | W165: х | X165: - | Y165: - | Z165: х | AA165: - | AB165: - | AC165: - | AD165: - | AE165: х | AF165: - | AG165: x | AH165: x | AI165: - | AJ165: x | AK165: x | AL165: x | AM165: - | AN165: x
A166: 153 | B166: Закупка материалов, используемых в процессе обучения | C166: П346004 | D166: 346 | E166: 76,890.40 | F166: 51,680.00 | G166: x | H166: x | I166: x | J166: 51,680.00 | K166: x | L166: - | M166: - | N166: - | O166: х | P166: - | Q166: х | R166: - | S166: х | T166: х | U166: х | V166: х | W166: х | X166: - | Y166: - | Z166: х | AA166: - | AB166: - | AC166: - | AD166: - | AE166: х | AF166: - | AG166: x | AH166: x | AI166: - | AJ166: x | AK166: x | AL166: x | AM166: 76,890.40 | AN166: x
A167: 154 | B167: Закупка запчастей к транспортным средствам | C167: П346013 | D167: 346 | E167: - | F167: - | G167: x | H167: x | I167: x | J167: - | K167: x | L167: - | M167: - | N167: - | O167: х | P167: - | Q167: х | R167: - | S167: х | T167: х | U167: х | V167: х | W167: х | X167: - | Y167: - | Z167: х | AA167: - | AB167: - | AC167: - | AD167: - | AE167: х | AF167: - | AG167: x | AH167: x | AI167: - | AJ167: x | AK167: x | AL167: x | AM167: - | AN167: x
A168: 155 | B168: Приобретение автошин | C168: П346014 | D168: 346 | E168: - | F168: - | G168: x | H168: x | I168: x | J168: - | K168: x | L168: - | M168: - | N168: - | O168: х | P168: - | Q168: х | R168: - | S168: х | T168: х | U168: х | V168: х | W168: х | X168: - | Y168: - | Z168: х | AA168: - | AB168: - | AC168: - | AD168: - | AE168: х | AF168: - | AG168: x | AH168: x | AI168: - | AJ168: x | AK168: x | AL168: x | AM168: - | AN168: x
A169: 156 | B169: Приобретение канцелярских, хозяйственных товаров, расходных материалов | C169: П346017 | D169: 346 | E169: 85,331.28 | F169: 144,817.22 | G169: x | H169: x | I169: x | J169: 144,817.22 | K169: x | L169: - | M169: 184,988.02 | N169: 184,988.02 | O169: х | P169: 184,988.02 | Q169: х | R169: - | S169: х | T169: х | U169: х | V169: х | W169: х | X169: - | Y169: - | Z169: х | AA169: - | AB169: 184,988.02 | AC169: 184,988.02 | AD169: - | AE169: х | AF169: - | AG169: x | AH169: x | AI169: - | AJ169: x | AK169: x | AL169: x | AM169: 85,331.28 | AN169: x
A170: 157 | B170: Прочие первоочередные расходы по увеличению стоимости прочих материальных запасов | C170: П346098 | D170: 346 | E170: - | F170: 14,209.13 | G170: x | H170: x | I170: x | J170: 14,209.13 | K170: x | L170: - | M170: 1,474.00 | N170: 1,474.00 | O170: х | P170: 1,474.00 | Q170: х | R170: - | S170: х | T170: х | U170: х | V170: х | W170: х | X170: - | Y170: - | Z170: х | AA170: - | AB170: 1,474.00 | AC170: 1,474.00 | AD170: - | AE170: х | AF170: - | AG170: x | AH170: x | AI170: - | AJ170: x | AK170: x | AL170: x | AM170: - | AN170: x
A171: 158 | B171: Прочие расходы по увеличению стоимости прочих материальных запасов, не включенные в вышеуказанные дополнительные коды экономической классификации (Ассигнования) | C171: Н346099 | D171: 346 | E171: 56,874.76 | F171: 42,665.63 | G171: x | H171: x | I171: x | J171: 42,665.63 | K171: x | L171: - | M171: 92,494.00 | N171: 92,494.00 | O171: х | P171: 92,494.00 | Q171: х | R171: - | S171: х | T171: х | U171: х | V171: х | W171: х | X171: - | Y171: - | Z171: х | AA171: - | AB171: 92,494.00 | AC171: 92,494.00 | AD171: - | AE171: х | AF171: - | AG171: x | AH171: x | AI171: - | AJ171: x | AK171: x | AL171: x | AM171: 56,874.76 | AN171: x
A172: 159 | B172: Прочие расходы по увеличению стоимости прочих материальных запасов, не включенные в вышеуказанные дополнительные коды экономической классификации (Лимиты) | C172: Н346099 | D172: 346 | E172: 56,874.76 | F172: 42,665.63 | G172: x | H172: x | I172: x | J172: 42,665.63 | K172: x | L172: - | M172: 92,494.00 | N172: 92,494.00 | O172: х | P172: 92,494.00 | Q172: х | R172: - | S172: х | T172: х | U172: х | V172: х | W172: х | X172: - | Y172: - | Z172: х | AA172: - | AB172: 92,494.00 | AC172: 92,494.00 | AD172: - | AE172: х | AF172: - | AG172: x | AH172: x | AI172: - | AJ172: x | AK172: x | AL172: x | AM172: 56,874.76 | AN172: x
A173: 160 | B173: 349 "Увеличение стоимости прочих материальных запасов однократного применения" | E173: - | F173: - | G173: x | H173: x | I173: x | J173: - | K173: x | L173: - | M173: - | N173: - | O173: х | P173: - | Q173: х | R173: - | S173: х | T173: х | U173: х | V173: х | W173: х | X173: - | Y173: - | Z173: х | AA173: - | AB173: - | AC173: - | AD173: х | AE173: х | AF173: - | AG173: x | AH173: x | AI173: - | AJ173: x | AK173: x | AL173: x | AM173: - | AN173: x
A174: 161 | B174: Приобретение (изготовление) подарочной и сувенирной продукции (поздравительные открытки, адреса, почетные грамоты, дипломы, благодарственные письма, цветы, сувенирная продукция, медали, кубки, призы, подарки) | C174: Н349011 | D174: 349 | E174: - | F174: - | G174: x | H174: x | I174: x | J174: - | K174: x | L174: - | M174: - | N174: - | O174: х | P174: - | Q174: х | R174: - | S174: х | T174: х | U174: х | V174: х | W174: х | X174: - | Y174: - | Z174: х | AA174: - | AB174: - | AC174: - | AD174: х | AE174: х | AF174: - | AG174: x | AH174: x | AI174: - | AJ174: x | AK174: x | AL174: x | AM174: - | AN174: x
A175: 162 | B175: Расходы по увеличению стоимости прочих материальных запасов однократного применения | C175: П349098 | E175: - | F175: - | G175: x | H175: x | I175: x | J175: - | K175: x | L175: - | M175: - | N175: - | O175: х | P175: - | Q175: х | R175: - | S175: х | T175: х | U175: х | V175: х | W175: х | X175: - | Y175: - | Z175: х | AA175: - | AB175: - | AC175: - | AD175: х | AE175: х | AF175: - | AG175: x | AH175: x | AI175: - | AJ175: x | AK175: x | AL175: x | AM175: - | AN175: x
A176: 163 | B176: Прочие расходы по увеличению стоимости прочих материальных запасов однократного применения, не включенные в вышеуказанные дополнительные коды экономической классификации | C176: Н349099 | D176: 349 | E176: - | F176: - | G176: x | H176: x | I176: x | J176: - | K176: x | L176: - | M176: - | N176: - | O176: х | P176: - | Q176: х | R176: - | S176: х | T176: х | U176: х | V176: х | W176: х | X176: - | Y176: - | Z176: х | AA176: - | AB176: - | AC176: - | AD176: х | AE176: х | AF176: - | AG176: x | AH176: x | AI176: - | AJ176: x | AK176: x | AL176: x | AM176: - | AN176: x
A177: 164 | B177: 291 "Налоги, пошлины и сборы" | E177: 621,766.00 | F177: 628,147.00 | G177: x | H177: x | I177: x | J177: 628,147.00 | K177: x | L177: - | M177: 682,734.00 | N177: 682,734.00 | O177: х | P177: 682,734.00 | Q177: х | R177: х | S177: х | T177: х | U177: х | V177: х | W177: х | X177: х | Y177: x | Z177: х | AA177: x | AB177: - | AC177: - | AD177: - | AE177: х | AF177: 682,734.00 | AG177: x | AH177: x | AI177: - | AJ177: x | AK177: x | AL177: x | AM177: 621,766.00 | AN177: x
A178: 165 | B178: Земельный налог | C178: П291001 | D178: 291 | E178: 446,758.00 | F178: 446,758.00 | G178: x | H178: x | I178: x | J178: 446,758.00 | K178: x | L178: - | M178: 446,758.00 | N178: 446,758.00 | O178: х | P178: 446,758.00 | Q178: х | R178: х | S178: х | T178: х | U178: х | V178: х | W178: х | X178: х | Y178: x | Z178: х | AA178: x | AB178: - | AC178: - | AD178: х | AE178: х | AF178: 446,758.00 | AG178: x | AH178: x | AI178: - | AJ178: x | AK178: x | AL178: x | AM178: 446,758.00 | AN178: x
A179: 166 | B179: Выплаты за негативное воздействие окружающей среды (экологический налог) | C179: П291004 | D179: 291 | E179: - | F179: - | G179: x | H179: x | I179: x | J179: - | K179: x | L179: - | M179: - | N179: - | O179: х | P179: - | Q179: х | R179: х | S179: х | T179: х | U179: х | V179: х | W179: х | X179: х | Y179: x | Z179: х | AA179: x | AB179: - | AC179: - | AD179: х | AE179: х | AF179: - | AG179: x | AH179: x | AI179: - | AJ179: x | AK179: x | AL179: x | AM179: - | AN179: x
A180: 167 | B180: Прочие налоги, в т.ч.госпошлины (за исключением налогов по школьным автобусам) | C180: П291005 | D180: 291 | E180: - | F180: - | G180: x | H180: x | I180: x | J180: - | K180: x | L180: - | M180: - | N180: - | O180: х | P180: - | Q180: х | R180: х | S180: х | T180: х | U180: х | V180: х | W180: х | X180: х | Y180: x | Z180: х | AA180: x | AB180: - | AC180: - | AD180: х | AE180: х | AF180: - | AG180: x | AH180: x | AI180: - | AJ180: x | AK180: x | AL180: x | AM180: - | AN180: x
A181: 168 | B181: Налог на имущество | C181: П291014 | D181: 291 | E181: 175,008.00 | F181: 181,389.00 | G181: x | H181: x | I181: x | J181: 181,389.00 | K181: x | L181: - | M181: 235,976.00 | N181: 235,976.00 | O181: х | P181: 235,976.00 | Q181: х | R181: х | S181: х | T181: х | U181: х | V181: х | W181: х | X181: х | Y181: x | Z181: х | AA181: x | AB181: - | AC181: - | AD181: х | AE181: х | AF181: 235,976.00 | AG181: x | AH181: x | AI181: - | AJ181: x | AK181: x | AL181: x | AM181: 175,008.00 | AN181: x
A182: 169 | B182: Транспортный налог | C182: П291015 | D182: 291 | E182: - | F182: - | G182: x | H182: x | I182: x | J182: - | K182: x | L182: - | M182: - | N182: - | O182: х | P182: - | Q182: х | R182: х | S182: х | T182: х | U182: х | V182: х | W182: х | X182: х | Y182: x | Z182: х | AA182: x | AB182: - | AC182: - | AD182: - | AE182: х | AF182: - | AG182: x | AH182: x | AI182: - | AJ182: x | AK182: x | AL182: x | AM182: - | AN182: x
A183: 170 | B183: Прочие расходы по налогам, пошлинам и сборам | C183: П291099 | D183: 291 | E183: - | F183: - | G183: x | H183: x | I183: x | J183: - | K183: x | L183: - | M183: - | N183: - | O183: х | P183: - | Q183: х | R183: х | S183: х | T183: х | U183: х | V183: х | W183: х | X183: х | Y183: x | Z183: х | AA183: x | AB183: - | AC183: - | AD183: - | AE183: х | AF183: - | AG183: x | AH183: x | AI183: - | AJ183: x | AK183: x | AL183: x | AM183: - | AN183: x
A184: 171 | B184: Итого учтено ассигнований | E184: 65,038,245.07 | F184: 65,205,820.02 | G184: 47,093,280.77 | H184: - | I184: 2,676,737.41 | J184: 15,435,801.84 | K184: - | L184: - | M184: 83,466,592.99 | N184: 83,466,592.99 | O184: 55,746,276.40 | P184: 21,455,308.71 | Q184: 6,265,007.88 | R184: - | S184: 55,746,276.40 | T184: 50,860,979.40 | U184: 4,885,297.00 | V184: - | W184: - | X184: 5,771,708.04 | Y184: 2,596,934.83 | Z184: 3,174,773.21 | AA184: - | AB184: 14,505,249.90 | AC184: 14,505,249.90 | AD184: - | AE184: х | AF184: 991,500.00 | AG184: 657,000.00 | AH184: 3,090,234.67 | AI184: - | AJ184: 47,717,134.59 | AK184: - | AL184: 2,187,360.00 | AM184: 15,133,750.48 | AN184: -
A185: 172 | B185: Итого учтено лимитов | E185: 65,038,245.07 | F185: 65,205,820.02 | G185: 47,093,280.77 | H185: - | I185: 2,676,737.41 | J185: 15,435,801.84 | K185: - | L185: - | M185: 83,466,592.99 | N185: 83,466,592.99 | O185: 55,746,276.40 | P185: 21,455,308.71 | Q185: 6,265,007.88 | R185: - | S185: 55,746,276.40 | T185: 50,860,979.40 | U185: 4,885,297.00 | V185: - | W185: - | X185: 5,771,708.04 | Y185: 2,596,934.83 | Z185: 3,174,773.21 | AA185: - | AB185: 14,505,249.90 | AC185: 14,505,249.90 | AD185: - | AE185: х | AF185: 991,500.00 | AG185: 657,000.00 | AH185: 3,090,234.67 | AI185: - | AJ185: 47,717,134.59 | AK185: - | AL185: 2,187,360.00 | AM185: 15,133,750.48 | AN185: -
A186: 173 | B186: Объем недоведенных лимитов | E186: - | F186: - | G186: - | H186: - | I186: - | J186: - | K186: - | L186: - | M186: - | N186: - | O186: - | P186: - | Q186: - | R186: - | S186: - | T186: - | U186: - | V186: - | W186: - | X186: - | Y186: - | Z186: - | AA186: - | AB186: - | AC186: - | AD186: - | AE186: х | AF186: - | AG186: - | AH186: - | AI186: - | AJ186: - | AK186: - | AL186: - | AM186: - | AN186: -
E187: - | F187: - | G187: - | H187: - | I187: - | J187: - | K187: - | L187: - | M187: - | N187: - | O187: - | P187: - | Q187: - | R187: - | S187: - | T187: - | U187: - | V187: - | W187: - | X187: - | Y187: - | Z187: - | AA187: - | AB187: - | AC187: - | AD187: - | AE187: - | AF187: - | AG187: - | AH187: - | AI187: - | AJ187: - | AK187: - | AL187: - | AM187: - | AN187: -
E188: - | F188: - | G188: - | H188: - | I188: - | J188: - | K188: - | L188: - | M188: - | O188: 55,746,276.40 | P188: 55,746,276.40 | Q188: - | R188: - | S188: - | T188: - | U188: - | V188: - | W188: - | X188: - | Y188: - | Z188: - | AA188: - | AB188: - | AC188: - | AD188: - | AE188: - | AF188: - | AG188: - | AH188: - | AI188: - | AJ188: - | AK188: - | AL188: - | AM188: - | AN188: -
E189: - | F189: - | G189: - | H189: - | I189: - | J189: - | K189: - | L189: - | M189: - | O189: 21,455,308.71 | P189: 21,455,308.71 | Q189: - | R189: - | S189: - | T189: - | U189: - | V189: - | W189: - | X189: - | Y189: - | Z189: - | AA189: - | AB189: - | AC189: - | AD189: - | AE189: - | AF189: - | AG189: - | AH189: - | AI189: - | AJ189: - | AK189: - | AL189: - | AM189: - | AN189: -
E190: - | F190: - | G190: - | H190: - | I190: - | J190: - | K190: - | L190: - | M190: - | N190: - | O190: - | P190: - | Q190: - | R190: - | S190: - | T190: - | U190: - | V190: - | W190: - | X190: - | Y190: - | Z190: - | AA190: - | AB190: - | AC190: - | AD190: - | AE190: - | AF190: - | AG190: - | AH190: - | AI190: - | AJ190: - | AK190: - | AL190: - | AM190: - | AN190: -
E191: - | F191: - | G191: - | H191: - | I191: - | J191: - | K191: - | L191: - | M191: - | O191: 6,265,007.88 | P191: 6,265,007.88 | Q191: - | R191: - | S191: - | T191: - | U191: - | V191: - | W191: - | X191: - | Y191: - | Z191: - | AA191: - | AB191: - | AC191: - | AD191: - | AE191: - | AF191: - | AG191: - | AH191: - | AI191: - | AJ191: - | AK191: - | AL191: - | AM191: - | AN191: -
E192: - | F192: - | G192: - | H192: - | I192: - | J192: - | K192: - | L192: - | M192: - | N192: - | O192: 83,466,592.99 | P192: 83,466,592.99 | Q192: - | R192: - | S192: - | T192: - | U192: - | V192: - | W192: - | X192: - | Z192: - | AA192: - | AB192: - | AC192: - | AD192: - | AE192: - | AF192: - | AG192: - | AH192: - | AI192: - | AJ192: - | AK192: - | AL192: - | AM192: - | AN192: -

Sheet Расшифровка по бюджету
A1: Бюджет по МБОУ "Гимназия №96" Вахитовского района на 2023 год
A4: РАСХОДЫ
A5: Наименование показателя | B5: КОСГУ | C5: Доп ЭК | D5: гим.96
B6: 210 | D6: =D7+D18 -> 66003507.84
A7: Заработная плата , всего | B7: 211 | D7: =SUM(D8:D17) -> 50693938.43
A8: зарплата пед.перс. (Субвенция 05000) | B8: 302 | C8: П211004 | D8: 31,984,476.49
A9: зарплата УВП (Субввенция 05000) | B9: 302 | C9: П211005 | D9: 4,907,208.92
A10: резерв на премию (Субвенция 13594) | B10: 302 | C10: П211099 | D10: 3,752,148.23
A11: зарплата пед.перс. (Субсидия 4219900 05000) | B11: 302 | C11: П211004
A12: зарплата УВП (Субсидия 4219900 05000) | B12: 302 | C12: П211005
A13: недостаток НФЗ субсидия | B13: 305 | C13: П211004 | D13: 1,262,130.47
A14: недостаток НФЗ субсидия | B14: 305 | C14: П211005 | D14: 193,642.00
A15: зарплата обслуж.перс | B15: 304 | C15: П211005 | D15: 5,148,793.44
A16: зарплата кух.работников | B16: 304 | C16: П90200 | D16: 3,445,538.88
A17: зарплата водителей | B17: 304 | C17: П90220
A18: Начисления на выплаты по оплате труда, всего: | B18: 213 | D18: =SUM(D19:D28) -> 15,309,569.41
A19: начисл.на з/пл. пед.перс. (Субвенция 05000) | B19: 302 | C19: П213004 | D19: 9,659,311.90
A20: начисление на з.пл. УВП (Субвенция 05000) | B20: 302 | C20: П213005 | D20: 1,481,977.09
A21: резерв на премию (Субвенция 13594) | B21: 302 | C21: П213099 | D21: 1,133,148.77
A22: начисл.на з/пл. пед.перс. (Субсидия 4219900 05002) | B22: 302 | C22: П213004
A23: начисление на з.пл. УВП (Субсидия 4219900 05002) | B23: 302 | C23: П213005
A24: недостаток НФЗ субсидия | B24: 305 | C24: П213004 | D24: 381,163.40
A25: недостаток НФЗ субсидия | B25: 305 | C25: П213005 | D25: 58,479.89
A26: начисления на з.пл обслуж.перс. | B26: 304 | C26: П213005 | D26: 1,554,935.62
A27: начисл.на з.пл.кух.работников | B27: 305 | C27: П90200 | D27: 1,040,552.74
A28: начисл.на з.пл.водителей | B28: 305 | C28: П90220
A29: Оплата работ, услуг: | B29: 220 | D29: =D30+D35+D41+D47+D51+D76 -> 9,646,508.20
A30: Услуги связи, всего: | B30: 221 | D30: =SUM(D31:D34) -> 22,200.29
A31: Услуги городской телефонной связи (местные соединения) | B31: 304 | C31: П221001 | D31: 22,200.29
A32: Услуги сотовой связи | C32: П221002
A33: Услуги сети "Интернет" | C33: П221012
A34: Прочие | C34: П221099
A35: Транспортные услуги, всего: | B35: 222
A36: Все виды расходов по транспортному обслуживанию (найм)
A37: Командировочные расходы (проезд)
A38: Проезд в отпуск сотрудников правоохранительных органов
A39: Транспортные услуги по перевозке школьников (ежедневный подвоз)
A40: Прочие
A41: Коммунальные услуги, всего: | B41: 223 | D41: =SUM(D42:D46) -> 3,402,910.60
A42: Оплата потребления электрической энергии | B42: 304 | C42: П223001 | D42: 1,316,943.00
A43: Оплата отопления и технологических нужд | B43: 304 | C43: П223002 | D43: 1,631,534.00
A44: Оплата потребления газа | B44: 304 | C44: П223003
A45: Оплата водоснабжения помещений | B45: 304 | C45: П223004 | D45: 139,186.00
A46: Оплата договоров на вывоз твердых коммунальных отходов с региональным оператором | B46: 304 | C46: П223017 | D46: 315,247.60
A47: Арендная плата за пользование имуществом, всего: | B47: 224
A48: Аренда помещения
A49: Аренда транспорта
A50: Прочие
A51: Работы, услуги по содержанию имущества, всего: | B51: 225 | D51: =SUM(D52:D75) -> 406,499.27
A52: Обслуживание КТС (ФГУП Охрана) | B52: 304 | C52: 225001
A53: Техобслуживание АПС (пож.сигнализации) | B53: 304 | C53: 225001
A54: Тех.обслуж.системы "Стрелец-мониторинг" | B54: 304 | C54: 225,001
A55: Тех.обслуж.системы видеонаблюдения | B55: 304 | C55: 225,001
A56: Сброс снега с крыши | B56: 304 | C56: П225002 | D56: 23,800.00
A57: Дезинфекция, дезинсекция и дератизация | B57: 304 | C57: П225002 | D57: 20,633.20
A58: Опрессовка системы отопления | B58: 304 | C58: П225003 | D58: 71,797.93
A59: З/пл внешт.сотр.(сброс снега с крыши) | B59: 304 | C59: П225005
A60: Текущий ремонт зданий (плановые кровельные и общестроительные работы, плановый ремонт коммунальных инженерных систем и коммуникаций, в том числе газового и теплового хозяйства, сетей водоснабжения, водоотведения и электроснабжения) | B60: 304 | C60: Н225007 | D60: 93,785.40
A61: Техническое обслуживание и ремонт аппаратного обеспечения (оргтехника, медицинское оборудование, компьют.техника и т.д.), включающее контроль тех.состояния | C61: П225010 | D61: 37,089.61
A62: Техническое обслуживание транспортных средств | B62: 90,220 | C62: П225011
A63: Ремонт транспортных средств | B63: 90,220 | C63: П225012
A64: Техническое осмотр трансп.средств (предрейсовый) | B64: 90,220 | C64: П225013
A65: Содержание транспортных средств (мойка, шиномонтаж) | B65: 90,220 | C65: П225014
A66: Расходы на техническое обслуживание и ремонт оборудования (торговое, кухонное, офисное, лифты и т.п.), мебели, бытовой техники, инвентаря (торгового, кухонного, офисного и т.п.) | B66: 304 | C66: П225015 | D66: 37,089.61
A67: Расходы на техническое обслуживание узлов пог.регулир.и теплообменников | B67: 304 | C67: П225015 | D67: =47171.04+43584 -> 90,755.04
A68: Прачечные услуги | B68: 304 | C68: П225016
A69: Техническое обслуживание приборов учета | B69: 304 | C69: П225035 | D69: 31,548.48
A70: Противопожарные мероприятия (замеры сопротивления изоляции) | B70: 304 | C70: П225036
A71: Противопожарные мероприятия (огнезащитная обработка чердачных перекрытий) | B71: 304 | C71: П225036
A72: Благоустройство территории (общестроительные работы вне здания, обрезка деревьев) | B72: 304 | C72: П225040
A73: Обслуживание кухонного оборудования | B73: 304 | C73: П900200
A74: Потребность на замену счётчиков и трансформаторов | C74: П225098
A75: Обслуживание системы ГЛОНАС, АСУ-Т | B75: 90,220 | C75: П225098
A76: Прочие работы, услуги, всего: | B76: 226 | D76: =SUM(D77:D95) -> 5,814,898.04
A77: Подписка | C77: П226001
A78: Организация питания (гор.бюджет) | C78: П226003 | D78: 2,596,934.83
A79: Организация питания (субвенция) | C79: П226003 | D79: 3,174,773.21
A80: Услуги адвокатов, нотариусов, переводчиков, экспертов | C80: П226025
A81: Оплата мед.осмотра (ежедневный медосмтр водителя) | B81: 90,220 | C81: П226031
A82: Обучение санит.гигиен.обуч.руковод. | B82: 304 | C82: П226052 | D82: 7,500.00
A83: Прочее обучение (охрана труда 1500руб.на чел.) | B83: 304 | C83: П226052 | D83: 4,500.00
A84: Обучение контрактным управляющим | B84: 304 | C84: П226052 | D84: 5,500.00
A85: Прочие обучения (ГО и ЧС 3000руб.-1чел.) | B85: 304 | C85: П226052 | D85: 3,000.00
A86: Прочие обучения (программа электроустановок -4000,00) | B86: 304 | C86: П226052
A87: Оргвзносы | B87: 304 | C87: П226052
A88: Проведение инвентаризации, паспортизации осн.средств | B88: 304 | C88: П226027
A89: Лицензирование учреждения (мед.кабинет)
A90: Прочие работы и услуги (столовые перешедшие на аутсорсинг в Департ.питания) | B90: 304 | C90: 900200
A91: Прочие услуги (аттестация рабочих мест СОУТ) | B91: 304 | C91: П226098
A92: Прочие услуги (потребность на обслуживание автоматизированного учёта электроэнергии) | B92: 304 | C92: П226098
A93: Прочие работы и услуги (лицензия на ФИС ФРСДО) | B93: 304 | C93: П226015 | D93: 2,690.00
A94: Прочие работы и услуги (лаборат.исслед.воды) | B94: 304 | C94: П226098 | D94: 20,000.00
A95: Услуги по страхованию (ОСАГО и др.) | B95: 90,220 | C95: П227002
A96: Прочие расходы, всего: | B96: 290 | D96: =SUM(D97:D101) -> 682,734.00
A97: Земельный налог | B97: 304 | C97: П291001 | D97: 446,758.00
A98: Госпошлина на переоформеление лицензии | B98: 304 | C98: П291005
A99: Госпошлина на оформеление аккредитации | B99: 304 | C99: П291005
A100: Налог на имущество | B100: 304 | C100: П291014 | D100: 235,976.00
A101: Транспортный налог (Доп ФК 90220) | B101: 304 | C101: П291015
A102: Поступление нефинансовых активов, всего: | B102: 300 | D102: =D103+D114 -> 3,386,608.28
A103: Увеличение стоимости основных средств, всего: | B103: 310 | D103: =SUM(D104:D113) -> 2,908,005.00
A104: Приобретение автоматизированных рабочих мест, транспортно-коммуникационного оборудования, серверного, периферийного и т.п.оборудования | C104: Н310004 | D104: =173179.91-D109 -> 93,179.91
A105: Приобретение автоматизированных рабочих мест, транспортно-коммуникационного оборудования, серверного, периферийного и т.п.оборудования (субсидия) | B105: 302 | C105: Н310004
A106: Приобретение автоматизированных рабочих мест, транспортно-коммуникационного оборудования, серверного, периферийного и т.п.оборудования (субсидия) | B106: 308 | C106: Н310004
A107: Приобретение автоматизированных рабочих мест, транспортно-коммуникационного оборудования, серверного, периферийного и т.п.оборудования (субвенция) | B107: 302 | C107: Н310004 | D107: 606,820.09
A108: Приобретение учебников (субвенция) | B108: 302 | C108: Н310010 | D108: 2,008,005.00
A109: Прочие расходы по увеличению стоимости основных средств | B109: 304 | C109: Н310099 | D109: 80,000.00
A110: Прочие расходы по увеличению стоимости основных средств (субвенция) | B110: 302 | C110: Н310099 | D110: 120,000.00
A111: Прочие расходы по увеличению стоимости основных средств (субвенция только ассигнования) | B111: 302
A112: Прочие расходы по увеличению стоимости основных средств (субсидия) | B112: 308 | C112: Н310099
A113: Прочие расходы по увеличению стоимости основных средств (субсидия только ассигнования) | B113: 302 | C113: Н346099
A114: Увеличение стоимости материальных запасов, всего: | B114: 340 | D114: =SUM(D115:D135) -> 478,603.28
A115: Закупка мягкого инвентаря, одежды, обмундирования | B115: 304 | C115: П345002
A116: Закупка запчастей к оборудованию | B116: 304 | C116: П346003
A117: Закупка материалов, используемых в процессе обучения | B117: 304 | C117: П346004
A118: Закупка материалов, используемых в процессе обучения (субвенция) | B118: 302 | C118: П346004 | D118: 93,179.91
A119: Закупка материалов, используемых в процессе обучения (субсидия) | B119: 302 | C119: П346004
A120: Закупка материалов, используемых в процессе обучения (субсидия) | B120: 308 | C120: П346004
A121: Закупка медикаментов, перевязочных средств (расходных материалов) | C121: П341006 | D121: 13,973.34
A122: ГСМ | B122: 90,220 | C122: П343001
A123: Моторные масла | B123: 90,220 | C123: П343015
A124: Запчасти | B124: 90,220 | C124: П346013
A125: Приобретение строительных материалов | C125: Н344099 | D125: 92,494.01
A126: Приобретение канцелярских и хозяственных товаров | C126: П346017 | D126: 184,988.02
A127: Прочие расходы по увеличение стоимости мат.запасов | B127: 304 | C127: Н346099 | D127: 92,494.00
A128: Прочие расходы по увеличение стоимости мат.запасов (песчанно-соляная смесь) | B128: 304 | C128: П346098 | D128: 1,474.00
A129: Прочие расходы по увеличение стоимости мат.запасов | B129: 304 | C129: П346098
A130: Прочие расходы по увеличению стоимости мат.запасов (субвенция только ассигнования) | B130: 302 | C130: Н346099
A131: Прочие расходы по увеличению стоимости мат.запасов (субсидия только ассигнования) | B131: 302 | C131: Н346099
A132: Прочие расходы по увеличение стоимости мат.запасов (довед.до норматива только асигнования) мун.бюджет | B132: 304 | C132: Н346099
A133: Призы, подарки при проведении мероприятий (субсидия) | B133: 302 | C133: П349098
A134: Призы, подарки при проведении мероприятий (субсидия) | B134: 308 | C134: П349098
A135: Призы, подарки при проведении мероприятий (субвенция) | B135: 302 | C135: П349098
A136: ИТОГО РАСХОДОВ: | D136: =D6+D29+D96+D102 -> 79,719,358.32
A137: в т.ч.субвенция | D137: =D8+D9+D10+D19+D20+D21+D107+D110+D118+D130+D135+D108 -> 55,746,276.40
A138: в т.ч.субсидия | D138: =D11+D12+D22+D23+D105+D112+D119+D131+D13+D14+D24+D25+D113+D134+D106+D120+D133 -> 1,895,415.76
A139: в т.ч.гор.бюджет | D139: =D15+D16+D17+D26+D27+D28+D30+D41+D51+D82+D83+D84+D85+D86+D87+D88+D89+D91+D92+D93+D94+D96+D104+D109+D115+D116+D117+D121+D125+D126+D127+D128+D132+D77+D81+D95+D122+D123+D124+D129+D80 -> 16,305,958.12
A147: недостаток НФЗ | B147: 305 | C147: П211004
A148: недостаток НФЗ | B148: 305 | C148: П211005
A149: недостаток НФЗ | B149: 305 | C149: П213004
A150: недостаток НФЗ | B150: 305 | C150: П213005
A151: Итого | D151: =SUM(D147:D150) -> 0.00
A152: классное руководство 211004 | D152: 2,373,452.13
A153: классное руководство 213004 | D153: 716,782.54
A155: недостаток по гор.бюджету (обсл.перс.) | B155: 305 | C155: П211005
A156: недостаток по гор.бюджету (обсл.перс.) | B156: 305 | C156: П213005
A158: Услуги вневедомственной ( в том числе пожарной) охраны (КТС) | C158: П226050 | D158: 657,000.00
A160: Итого расчетная потребность 2023 в ОФО | D160: =D136+D147+D148+D149+D150+D152+D153+D155+D156+D158 -> 83,466,592.99
